{"text_format":"1","workbook":"xlsx","n_sheets":4,"sheets":["表紙","検索方法","用語集","用語元"],"not_rendered":{"charts":0,"images":11,"macros":1,"external_links":0,"defined_names":1,"comments":0,"pivot_tables":0},"unopened":[],"bounds":{"document_bytes":16777216,"sheet_cells":100000,"rows_first":2000,"rows_last":500,"rows_between":2000,"halvings":0,"cell_chars":16384,"cell_head_chars":4096},"cells_cut":0,"cells_raw":0,"read":"whole","date_system":"1900"}

{"sheet":"表紙","index":0,"n_rows":9,"n_cols":1,"rows_kept":9,"cut":false,"hidden":false,"merged":[[5,0,7,8],[8,0,11,18],[54,14,55,17]]}
[]
[]
[]
[]
[]
["新規採用事務職員用"]
[]
[]
["学校事務用語集"]

{"sheet":"検索方法","index":1,"n_rows":58,"n_cols":7,"rows_kept":58,"cut":false,"hidden":false,"merged":[[1,1,4,9],[5,1,6,9],[48,1,51,9],[52,1,53,9]]}
[]
[null,"Ⅰ　用語検索"]
[]
[]
[]
[null,"○用語を漢字から検索する場合"]
[]
[]
[null,"①検索ワード欄に漢字で入力"]
[null,"②用語検索ボタンを押す"]
[null,"③検索結果が表示されるので確認し、最後に検索解除を押すと検索前の状態に戻る"]
[]
[]
[]
[]
[]
[null,null,null,null,null,null,"②検索ワードを入れる"]
[]
[]
[]
[null,null,null,null,null,null,"③「ＯＫ」ボタンを押す"]
[]
[]
[]
[]
[]
[]
[]
[]
[]
[]
[]
[]
[]
[]
[]
[]
[]
[]
[]
[]
[]
[]
[]
[]
[]
[]
[]
[null,"Ⅱ　よみ検索"]
[]
[]
[]
[null,"○用語を読み方から検索する場合"]
[]
[]
[null,"①検索ワード欄にひらがなで入力"]
[null,"②よみ検索ボタンを押す"]
[null,"③検索結果が表示されるので確認し、最後に検索解除を押すと検索前の状態に戻る"]

{"sheet":"用語集","index":2,"n_rows":306,"n_cols":6,"rows_kept":306,"cut":false,"hidden":false,"merged":[[3,5,3,17]]}
[]
[null,null,null,"検索ワード","就学"]
[]
[null,null,"用語","よみかた","意味・解説","⚠各項目の内容は別シートから取り込んでいるため、\n　こちらのセルは編集しないこと！"]
[null,{"$f":"LEFT(D5,1)","v":"あ"},{"$f":"'用語元'!A2","v":"ICT"},{"$f":"'用語元'!B2","v":"あいしーてぃー"},{"$f":"'用語元'!C2","v":"Information and Communication Technologyの略。\n情報・通信に関連する技術の総称。一般的には「情報通信技術」と訳される。\n学校では、教育活動の目標達成のために情報機器を活用することをいう。学校事務では、情報機器や公務の情報化（ネットワークを有効に活用する技術）を指す。"}]
[null,"あ",{"$f":"'用語元'!A3","v":"赤本"},{"$f":"'用語元'!B3","v":"あかほん"},{"$f":"'用語元'!C3","v":"①教科書の指導書のこと。（赤刷り教科書とも言う）解説等の内容が赤字で載っていることからこのように呼ばれる。\n②群馬県教育関係事務必携のこと。"}]
[null,"あ",{"$f":"'用語元'!A4","v":"充て指導主事"},{"$f":"'用語元'!B4","v":"あてしどうしゅじ"},{"$f":"'用語元'!C4","v":"置籍職員の中で特に、教員としての身分・給与を保ったまま市町村教委・県総合教育センターなどで指導主事の業務を行う職員のこと。"}]
[null,"い",{"$f":"'用語元'!A5","v":"育児短時間勤務"},{"$f":"'用語元'!B5","v":"いくじたんじかんきんむ"},{"$f":"'用語元'!C5","v":"育児のため、勤務時間を短縮して勤務すること。勤務時間数のパターンに応じて給与の支給割合が決まる。"}]
[null,"い",{"$f":"'用語元'!A6","v":"iDeco"},{"$f":"'用語元'!B6","v":"いでこ"},{"$f":"'用語元'!C6","v":"個人が自分で掛金の積立て額を決め、自分で運用する私的年金制度。別名、個人型確定拠出年金。公務員は月額12,000円（年間144,000円）が上限。また、掛金は年末調整の際に控除の対象となる。２０２４年１２月から付限度額が実質２万円になる予定。"}]
[null,"い",{"$f":"'用語元'!A7","v":"異動"},{"$f":"'用語元'!B7","v":"いどう"},{"$f":"'用語元'!C7","v":"勤務学校・所属が変わること。"}]
[null,"い",{"$f":"'用語元'!A8","v":"インクカートリッジ"},{"$f":"'用語元'!B8","v":"いんくかーとりっじ"},{"$f":"'用語元'!C8","v":"印刷機のインクまたはインクジェットプリンタのインクが入っている容器。"}]
[null,"い",{"$f":"'用語元'!A9","v":"印刷機"},{"$f":"'用語元'!B9","v":"いんさつき"},{"$f":"'用語元'!C9","v":"書類を大量にコピーしたいときに使用。使用するのにマスター、インクが必要。\n輪転機（りんてんき）と呼ばれる場合もある。"}]
[null,"う",{"$f":"'用語元'!A10","v":"運営委員会（企画委員会）"},{"$f":"'用語元'!B10","v":"うんえいいいんかい（きかくいいんかい）"},{"$f":"'用語元'!C10","v":"職員会議の前に業務や行事の実行方法や日程などについて審議や承認を行う他、臨時的に重要な問題に対する対処方法を相談する会議。主に主任や管理職といった立場の者が参加する。"}]
[null,"え",{"$f":"'用語元'!A11","v":"A3用紙"},{"$f":"'用語元'!B11","v":"えーさんようし"},{"$f":"'用語元'!C11","v":"A4用紙の2倍サイズの紙（420mm×297mm）"}]
[null,"え",{"$f":"'用語元'!A12","v":"A4用紙"},{"$f":"'用語元'!B12","v":"えーよんようし"},{"$f":"'用語元'!C12","v":"学校内で一番使用する紙（297mm×210mm）\n文書を作成する際に最もよく使われる紙のサイズ。"}]
[null,"お",{"$f":"'用語元'!A13","v":"押印"},{"$f":"'用語元'!B13","v":"おういん"},{"$f":"'用語元'!C13","v":"印を押すこと。"}]
[null,"か",{"$f":"'用語元'!A14","v":"会計年度任用職員"},{"$f":"'用語元'!B14","v":"かいけいねんどにんようしょくいん"},{"$f":"'用語元'!C14","v":"任用期間が一会計年度（4月1日～翌年3月31日）の職員の名称。職種によって任用期間・勤務時間が異なる。"}]
[null,"か",{"$f":"'用語元'!A15","v":"鑑"},{"$f":"'用語元'!B15","v":"かがみ"},{"$f":"'用語元'!C15","v":"文書の総括として一番上につける用紙。\n（例：鑑なしでFAXしてください）"}]
[null,"が",{"$f":"'用語元'!A16","v":"学習指導要領"},{"$f":"'用語元'!B16","v":"がくしゅうしどうようりょう"},{"$f":"'用語元'!C16","v":"文部科学省が定めた学校教育法に基づく教育課程の編成基準。これを基に教員は年間の授業計画を作成する。"}]
[null,"が",{"$f":"'用語元'!A17","v":"学生協"},{"$f":"'用語元'!B17","v":"がくせいきょう"},{"$f":"'用語元'!C17","v":"群馬県内の学校に勤務する教職員が加入でき、仕事やくらしをサポートする福利厚生事業等を提供する生活協同組合。\n正式名：群馬県学校生活協同組合"}]
[null,"か",{"$f":"'用語元'!A18","v":"拡大教科書"},{"$f":"'用語元'!B18","v":"かくだいきょうかしょ"},{"$f":"'用語元'!C18","v":"弱視の児童生徒のための文字や図が拡大された教科書。支給には特殊な手続きが必要なので注意。　"}]
[null,"か",{"$f":"'用語元'!A19","v":"確定申告"},{"$f":"'用語元'!B19","v":"かくていしんこく"},{"$f":"'用語元'!C19","v":"納税義務者が税額を確定するために、その年（1月1日～12月31日）の所得、保険料、医療費などを本人が計算して税務署に申告すること。（申告期間は例年2月16日～3月15日）\n扶養の関係で結果を参照することがある。"}]
[null,"が",{"$f":"'用語元'!A20","v":"学年主任"},{"$f":"'用語元'!B20","v":"がくねんしゅにん"},{"$f":"'用語元'!C20","v":"各学年で指導的な立場にいる教員。学年を代表して会議に出席したり、外部と交渉したりするほか、学年が３学級以上の場合には教育業務連絡指導手当（いわゆる主任手当）が支給される。\n４月の初めにだれが担当するのか教育委員会に報告し、年度途中に変更があった場合も報告する。"}]
[null,"が",{"$f":"'用語元'!A21","v":"学務"},{"$f":"'用語元'!B21","v":"がくむ"},{"$f":"'用語元'!C21","v":"児童生徒の学籍や指導、出欠席に関わる事務全般のこと。"}]
[null,"が",{"$f":"'用語元'!A22","v":"学割"},{"$f":"'用語元'!B22","v":"がくわり"},{"$f":"'用語元'!C22","v":"生徒が全国大会や私的旅行の際に公共交通機関を利用し、利用距離が100㎞を超える場合に、その費用の一部を補助する制度。市町村や教育事務所から学割証をもらい、学校が発行する。"}]
[null,"か",{"$f":"'用語元'!A23","v":"貸付制度"},{"$f":"'用語元'!B23","v":"かしつけせいど"},{"$f":"'用語元'!C23","v":"物品の購入、住宅の購入など臨時的にお金が必要になった際に申し込むことが出来る制度。（一般貸付、住宅貸付、教育貸付などがある）共済組合と互助会の2種類の貸付がある。"}]
[null,"か",{"$f":"'用語元'!A24","v":"割愛退職（採用）"},{"$f":"'用語元'!B24","v":"かつあいたいしょく（さいよう）"},{"$f":"'用語元'!C24","v":"公務員としての身分を保ったまま給与支払者が変わって異動すること。\n（例：教員⇒市教委　県費教員⇒市費教員）"}]
[null,"が",{"$f":"'用語元'!A25","v":"学校預かり金"},{"$f":"'用語元'!B25","v":"がっこうあずかりきん"},{"$f":"'用語元'!C25","v":"学級費、学年費、PTA会費等、学校で預かり、管理運営されているお金。学校徴収金とも言う。"}]
[null,"が",{"$f":"'用語元'!A26","v":"学校日誌"},{"$f":"'用語元'!B26","v":"がっこうにっし"},{"$f":"'用語元'!C26","v":"校内の行事や教職員の出張、休暇などについて記載する日誌。　"}]
[null,"か",{"$f":"'用語元'!A27","v":"過年度"},{"$f":"'用語元'!B27","v":"かねんど"},{"$f":"'用語元'!C27","v":"既に経過した会計年度のこと。（給与や旅費でよく使う用語）"}]
[null,"か",{"$f":"'用語元'!A28","v":"カラープリンタ"},{"$f":"'用語元'!B28","v":"からーぷりんた"},{"$f":"'用語元'!C28","v":"カラーで印刷できる。コストが高いので注意。なお、トナー方式とインク方式の2種類がある。"}]
[null,"か",{"$f":"'用語元'!A29","v":"寒冷地"},{"$f":"'用語元'!B29","v":"かんれいち"},{"$f":"'用語元'!C29","v":"冬の寒さが厳しい地域のこと。寒冷地に指定された市町村または学校で勤務をする場合は、寒冷地手当が11月～3月の間支給される。"}]
[null,"き",{"$f":"'用語元'!A30","v":"起案"},{"$f":"'用語元'!B30","v":"きあん"},{"$f":"'用語元'!C30","v":"学校として何かをする（提出する）とき、管理職の承認（決裁）を得るために決定すべき内容や理由などを文書形式でまとめること。　"}]
[null,"き",{"$f":"'用語元'!A31","v":"基点"},{"$f":"'用語元'!B31","v":"きてん"},{"$f":"'用語元'!C31","v":"旅費の計算をするために各地域に与えられた名称。路程表に記載された基点と基点の間の距離を足し上げ旅費支給額を決めていく。令和5年10月1日で廃止され、現在は出発地→目的地→帰着地の実測距離を計算して旅費を支給している。"}]
[null,"き",{"$f":"'用語元'!A32","v":"期末・勤勉手当"},{"$f":"'用語元'!B32","v":"きまつ・きんべんてあて"},{"$f":"'用語元'!C32","v":"期末手当と勤勉手当からなる、民間企業における賞与（ボーナス）のこと。6月30日と12月10日の年2回支給される。詳細は期末・勤勉手当支給要領を参照。"}]
[null,"ぎ",{"$f":"'用語元'!A33","v":"義務教育学校"},{"$f":"'用語元'!B33","v":"ぎむきょういくがっこう"},{"$f":"'用語元'!C33","v":"小学校から中学校までの教育が一貫して行われる学校。小中一貫校と違い、組織的にも統一されている。"}]
[null,"き",{"$f":"'用語元'!A34","v":"休暇"},{"$f":"'用語元'!B34","v":"きゅうか"},{"$f":"'用語元'!C34","v":"有給のまま職務を休むことができる制度。主に年次有給休暇・病気休暇・特別休暇がある。条例によって取り扱いが定められているので、詳細は事務必携や県教委から出ている「学校職員の休暇等について」等を参照。"}]
[null,"き",{"$f":"'用語元'!A35","v":"休業"},{"$f":"'用語元'!B35","v":"きゅうぎょう"},{"$f":"'用語元'!C35","v":"無給ではあるものの、職員としての身分を保ったまま業務を休むことができる制度。主に育児休業などがある。休暇同様事務必携などに詳細が記載されている。（育児休業では、育休開始から子が1歳になるまでの期間で育児休業手当金が支給される。）"}]
[null,"き",{"$f":"'用語元'!A36","v":"休職"},{"$f":"'用語元'!B36","v":"きゅうしょく"},{"$f":"'用語元'!C36","v":"基本的に病休が長期になった場合に、給与の極端な減額を避けるため、ある程度給与を減額しながら休む制度。休職中は最長1年傷病手当金が支給されるが、給与の額によっては減額される。"}]
[null,"き",{"$f":"'用語元'!A37","v":"給与"},{"$f":"'用語元'!B37","v":"きゅうよ"},{"$f":"'用語元'!C37","v":"支給される全ての給料、手当等の総額。"}]
[null,"き",{"$f":"'用語元'!A38","v":"給与システム"},{"$f":"'用語元'!B38","v":"きゅうよしすてむ"},{"$f":"'用語元'!C38","v":"給与のデータを入力するためのシステム。旅費システムとは異なり、自分のアカウントでは勤務校のデータのみ閲覧できる。サスティックキーから起動させる。\n正式名：給与データ入出力システム"}]
[null,"き",{"$f":"'用語元'!A39","v":"給与明細"},{"$f":"'用語元'!B39","v":"きゅうよめいさい"},{"$f":"'用語元'!C39","v":"給料・諸手当支給明細書の略。\n毎月給料日前に給与システムから印刷して職員に配布する。支給日3日前から印刷可。（土日祝日を除く）\n給料日：毎月21日（21日が土日祝日の場合はその前の金曜日）"}]
[null,"き",{"$f":"'用語元'!A40","v":"給料"},{"$f":"'用語元'!B40","v":"きゅうりょう"},{"$f":"'用語元'!C40","v":"給与のうち基本給にあたる部分のこと。"}]
[null,"き",{"$f":"'用語元'!A41","v":"給料の調整額"},{"$f":"'用語元'!B41","v":"きゅうりょうのちょうせいがく"},{"$f":"'用語元'!C41","v":"特別支援学校に勤務する教員及び、小中学校の特別支援教育に直接関わる教員（特別支援学級担任や通級指導教室の職員）に対して勤務の特殊性から支給される給与で、給料とは別の枠に表示されるが、給料の一部として扱う。年度当初に該当者を報告し、休業などで該当者に変更があった場合も都度報告する。"}]
[null,"き",{"$f":"'用語元'!A42","v":"給料表"},{"$f":"'用語元'!B42","v":"きゅうりょうひょう"},{"$f":"'用語元'!C42","v":"各職員の級号給に応じた給料月額が載っている表。詳細は給料表の手引参照。"}]
[null,"き",{"$f":"'用語元'!A43","v":"教育事務所"},{"$f":"'用語元'!B43","v":"きょういくじむしょ"},{"$f":"'用語元'!C43","v":"各地域の教育に関する業務を取りまとめ、市町村と県をつなぐ機関。事務職員の立場からは給与・旅費・各手当の認定・公務災害・研修等の際に関わる。中部、西部、吾妻、利根、東部の5つがある。"}]
[null,"き",{"$f":"'用語元'!A44","v":"教員免許状"},{"$f":"'用語元'!B44","v":"きょういんめんきょじょう"},{"$f":"'用語元'!C44","v":"教育職員免許法に基づく免許状のこと。令和5年度から更新制度が廃止となった。ただし臨時免許状は取り扱いが異なり、3年に一度更新が必要。"}]
[null,"き",{"$f":"'用語元'!A45","v":"教科書"},{"$f":"'用語元'!B45","v":"きょうかしょ"},{"$f":"'用語元'!C45","v":"学校で各教科を教える際に中心的な教材として使われる文部科学大臣の検定に合格した図書。英語や社会など一部の教科では学年・市町村によって類似の図書が使われているが、それらは教科書ではないため、追加で必要になった場合には連絡先に注意する。\n正式名：教科用図書"}]
[null,"き",{"$f":"'用語元'!A46","v":"共済システム"},{"$f":"'用語元'!B46","v":"きょうさいしすてむ"},{"$f":"'用語元'!C46","v":"共済組合への加入、脱退や各種変更・申請のために教職員の登録を行うシステム。サスティックキーから起動させる。\n正式名：公立学校共済マイナンバー管理システム"}]
[null,"き",{"$f":"'用語元'!A47","v":"共同学校事務室"},{"$f":"'用語元'!B47","v":"きょうどうがっこうじむしつ"},{"$f":"'用語元'!C47","v":"中学校区を基本として2～7校で構成。事務職員が集まり、手当の認定や事務処理の相互審査、情報交換等を行う。頻度はグループごとに異なり、週2回から月2回程度。"}]
[null,"き",{"$f":"'用語元'!A48","v":"教務主任"},{"$f":"'用語元'!B48","v":"きょうむしゅにん"},{"$f":"'用語元'!C48","v":"教育事務等に関連する連絡・調整・指導を行う教諭のことを指す。教育業務連絡指導手当（いわゆる主任手当）が支給される。\nそのため、４月の初めにだれが担当するのか教育委員会に報告し、年度途中に変更があった場合も報告する。"}]
[null,"ぐ",{"$f":"'用語元'!A49","v":"GoogleClassroom"},{"$f":"'用語元'!B49","v":"ぐーぐるくらするーむ"},{"$f":"'用語元'!C49","v":"Googleが学校向けに開発した無料のWebサービスで、課題の作成、配布、採点をペーパーレス化、簡素化することを目的としている。"}]
[null,"ぐ",{"$f":"'用語元'!A50","v":"グリーン購入"},{"$f":"'用語元'!B50","v":"ぐりーんこうにゅう"},{"$f":"'用語元'!C50","v":"消費者が製品やサービスを購入する際、環境を考慮して、必要性をよく考え、環境への負荷ができるだけ少ないものを選んで購入すること。一部の市町村で購入に関する調査が行われている。"}]
[null,"ぐ",{"$f":"'用語元'!A51","v":"群事研"},{"$f":"'用語元'!B51","v":"ぐんじけん"},{"$f":"'用語元'!C51","v":"群馬県公立小中学校事務研究会の略。\n県内の公立学校事務職員で構成され、本部役員会、理事会、情報推進部、研究部、研修部、情報技術委員会などの組織がある。"}]
[null,"ぐ",{"$f":"'用語元'!A52","v":"群馬県教育関係事務必携"},{"$f":"'用語元'!B52","v":"ぐんまけんきょういくかんけいじむひっけい"},{"$f":"'用語元'!C52","v":"規則や条例などが網羅されている赤い本。通称「赤本」と呼ばれることもある。隔年発行で学校・個人どちらも購入可能。"}]
[null,"ぐ",{"$f":"'用語元'!A53","v":"群馬県教育関係職員録"},{"$f":"'用語元'!B53","v":"ぐんまけんきょういくかんけいしょくいんろく"},{"$f":"'用語元'!C53","v":"県内の教育関係職員がどこに所属しているかが載っている本。毎年4月～5月に各学校で原稿を作成し、7月頃発行される。個人でも購入可能。\n略称：職員録"}]
[null,"け",{"$f":"'用語元'!A54","v":"形式退職（採用）"},{"$f":"'用語元'!B54","v":"けいしきたいしょく（さいよう）"},{"$f":"'用語元'!C54","v":"給与支払者が同じままで市町村立の義務教育諸学校以外の組織に異動すること。\n（例：教員⇒県教委）"}]
[null,"け",{"$f":"'用語元'!A55","v":"決裁"},{"$f":"'用語元'!B55","v":"けっさい"},{"$f":"'用語元'!C55","v":"担当者が起案した内容を、権限がある者（管理職等）が決定・許可すること。起案→決裁→執行の流れとなる。"}]
[null,"け",{"$f":"'用語元'!A56","v":"決済用預金口座"},{"$f":"'用語元'!B56","v":"けっさいようよきんこうざ"},{"$f":"'用語元'!C56","v":"利息の付かない預金口座のこと。預金保険の対象となり、全額が保護されている。給与や就学援助など公的なお金を取り扱う場合はこの口座にするよう指示されることが多い。"}]
[null,"け",{"$f":"'用語元'!A57","v":"検収"},{"$f":"'用語元'!B57","v":"けんしゅう"},{"$f":"'用語元'!C57","v":"発注した物品などが品質・数量・仕様等の条件を満たして納品されているか確かめた上で、受け取ること。"}]
[null,"け",{"$f":"'用語元'!A58","v":"県総合教育センター"},{"$f":"'用語元'!B58","v":"けんそうごうきょういくせんたー"},{"$f":"'用語元'!C58","v":"群馬県総合教育センターの略。（センターと縮めて使われる場合もある　例：センター旅費・センター研修）\n教職員の研修を主催している群馬県の機関。旅費を支出する予算やルールが一般（普通旅費）とは違う場合があるので注意。"}]
[null,"け",{"$f":"'用語元'!A59","v":"県費"},{"$f":"'用語元'!B59","v":"けんぴ"},{"$f":"'用語元'!C59","v":"①県費負担教職員の略。県で任用される臨時的任用職員や会計年度任用職員も含まれる。⇔市町村費\n②県が負担・支出する費用のこと。県の経費。"}]
[null,"こ",{"$f":"'用語元'!A60","v":"後期用教科書"},{"$f":"'用語元'!B60","v":"こうきようきょうかしょ"},{"$f":"'用語元'!C60","v":"小学校で9月1日～9月15日に配布し、9月以降に使用する教科書。"}]
[null,"こ",{"$f":"'用語元'!A61","v":"公金"},{"$f":"'用語元'!B61","v":"こうきん"},{"$f":"'用語元'!C61","v":"国または地方公共団体の予算に計上されているお金のこと。（＝学校配当予算）これに対し、学校預かり金やPTA会費など自治体の管理下にあるわけではないものの、教職員が職務に基づいて管理しているお金のことを準公金と呼称する場合がある。"}]
[null,"こ",{"$f":"'用語元'!A62","v":"校内研修"},{"$f":"'用語元'!B62","v":"こうないけんしゅう"},{"$f":"'用語元'!C62","v":"校内で、学校課題の解決や教員の資質能力の向上を目指して、同僚の教職員とともに行う研修。"}]
[null,"こ",{"$f":"'用語元'!A63","v":"公費"},{"$f":"'用語元'!B63","v":"こうひ"},{"$f":"'用語元'!C63","v":"学校や市町村、県、国などの公共団体の費用。"}]
[null,"こ",{"$f":"'用語元'!A64","v":"公務災害"},{"$f":"'用語元'!B64","v":"こうむさいがい"},{"$f":"'用語元'!C64","v":"職務中や通勤途中にけがをしたり、職務が原因で病気などになった場合に該当する。認定請求を行い、認定された場合は、治療費等さまざまな補償を受けられる。申請する可能性がある場合、病院で組合員証（保険証）を使用してはいけない。また、加害者がいる場合は加害者に賠償してもらうため、基本的に対象外となる。"}]
[null,"こ",{"$f":"'用語元'!A65","v":"校務分掌"},{"$f":"'用語元'!B65","v":"こうむぶんしょう"},{"$f":"'用語元'!C65","v":"学校内の業務分担。学級担任や教科主任、生徒指導主事など。"}]
[null,"こ",{"$f":"'用語元'!A66","v":"公立学校共済組合群馬支部"},{"$f":"'用語元'!B66","v":"こうりつがっこうきょうさいくみあいぐんましぶ"},{"$f":"'用語元'!C66","v":"教職員の健康保険（保険証）や年金関係の手続きなどの福利厚生事業を担う機関。県教育委員会福利課が業務を担当している。詳細は以下のホームページを参照。\nhttps://www.kouritu.go.jp/gunma/"}]
[null,"ご",{"$f":"'用語元'!A67","v":"互助会"},{"$f":"'用語元'!B67","v":"ごじょかい"},{"$f":"'用語元'!C67","v":"会員の相互救済のため、各種給付・貸付・助成等を行っている組織。加入は任意で、毎月掛金が給与から引かれる。"}]
[null,"こ",{"$f":"'用語元'!A68","v":"個人調査票"},{"$f":"'用語元'!B68","v":"こじんちょうさひょう"},{"$f":"'用語元'!C68","v":"①人事異動について教職員が自身の状況や希望を申し出る調査書。\n②児童生徒の家庭状況・連絡先等の情報を保護者が記入し、学校に提出する用紙。家庭調査票などとも呼ばれる。"}]
[null,"こ",{"$f":"'用語元'!A69","v":"コピー機（複合機）"},{"$f":"'用語元'!B69","v":"こぴーき（ふくごうき）"},{"$f":"'用語元'!C69","v":"文書をコピーするために使用する機械で、スキャナ機能やプリンタ機能を持つ複合機の場合もある。使用料は、インクを購入するパターンと、契約で印刷単価に使用枚数をかけて決めるパターンがある。契約単価が学校によって違うので、枚数によっては印刷機で刷る方が安価な場合がある。"}]
[null,"こ",{"$f":"'用語元'!A70","v":"コミュニティ・スクール"},{"$f":"'用語元'!B70","v":"こみゅにてぃ・すくーる"},{"$f":"'用語元'!C70","v":"保護者や地域のニーズを反映させるために、地域住民が学校運営に参画できるようにする仕組みや考え方を有する形態の学校のこと。"}]
[null,"ざ",{"$f":"'用語元'!A71","v":"在学証明書"},{"$f":"'用語元'!B71","v":"ざいがくしょうめいしょ"},{"$f":"'用語元'!C71","v":"証明をした日付まで児童生徒が在学していたことを証明する書類。転校などの際に相手校に送付する。"}]
[null,"さ",{"$f":"'用語元'!A73","v":"債権者"},{"$f":"'用語元'!B73","v":"さいけんしゃ"},{"$f":"'用語元'!C73","v":"市町村と契約している業者。公費で支払いを行う場合、債権者登録された業者でないと支払いができない市町村もある。"}]
[null,"ざ",{"$f":"'用語元'!A74","v":"在職証明書"},{"$f":"'用語元'!B74","v":"ざいしょくしょうめいしょ"},{"$f":"'用語元'!C74","v":"特定の期間に勤務していたことを証明する書類。臨時的任用職員の給与格付や正規職員の期末・勤勉手当支給割合の決定に使われる。"}]
[null,"さ",{"$f":"'用語元'!A75","v":"裁断機"},{"$f":"'用語元'!B75","v":"さいだんき"},{"$f":"'用語元'!C75","v":"紙を裁断するときに使用。学校によっては電動のものもある。"}]
[null,"さ",{"$f":"'用語元'!A76","v":"再任用"},{"$f":"'用語元'!B76","v":"さいにんよう"},{"$f":"'用語元'!C76","v":"定年から年金支給開始年齢まで働くことができる任用形態。正規職員と同じ時間で働くフルタイムと短時間勤務の2種類がある。定年の延長により令和5年度より名称が「暫定再任用」となった。また、併せて60歳を超えてから定年前に一度退職し短時間勤務を行う「定年前再任用短時間勤務職員」という任用形態もできた。"}]
[null,"ざ",{"$f":"'用語元'!A77","v":"財務会計システム"},{"$f":"'用語元'!B77","v":"ざいむかいけいしすてむ"},{"$f":"'用語元'!C77","v":"業者へ支払う際の伺い・命令の作成や予算執行状況の確認等に使用する。また、市町村によっては備品の管理にも使用する。"}]
[null,"さ",{"$f":"'用語元'!A78","v":"サスティックキー"},{"$f":"'用語元'!B78","v":"さすてぃっくきー"},{"$f":"'用語元'!C78","v":"給与システム、旅費システム、共済システム、人事管理システムを起動するために必要な専用のUSBメモリ型認証キー。"}]
[null,"し",{"$f":"'用語元'!A79","v":"C4th"},{"$f":"'用語元'!B79","v":"しーふぉーす"},{"$f":"'用語元'!C79","v":"校務支援システムの名称。県内の多くの市町村で導入されている。文書受付や市町村内の学校・教育委員会内の連絡、学校日誌等に使用。"}]
[null,"し",{"$f":"'用語元'!A80","v":"私印"},{"$f":"'用語元'!B80","v":"しいん"},{"$f":"'用語元'!C80","v":"本人の丸印。自印（じいん）・認印（みとめいん）とも言う。"}]
[null,"し",{"$f":"'用語元'!A81","v":"市教委"},{"$f":"'用語元'!B81","v":"しきょうい"},{"$f":"'用語元'!C81","v":"市教育委員会の略。町の場合は町教委、村の場合は村教委と言う。\n市町村内の学校に関わる文書や業務を取りまとめている機関。"}]
[null,"じ",{"$f":"'用語元'!A82","v":"自己申告書"},{"$f":"'用語元'!B82","v":"じこしんこくしょ"},{"$f":"'用語元'!C82","v":"年度始めに学校経営方針などを参考に自身で目標を設定し、年度の後半に自己評価を行い、管理職に申告する書類。それを基に管理職との面談が行われ、自己申告書や普段の業績などを参考に人事評価が行われる。"}]
[null,"し",{"$f":"'用語元'!A83","v":"支出負担行為兼支出命令書（兼命令）"},{"$f":"'用語元'!B83","v":"ししゅつふたんこういけんししゅつめいれいしょ（けんめいれい）"},{"$f":"'用語元'!C83","v":"支出負担行為書と支出命令書の役割を兼ねた書類。市町村によってはほとんどの財務処理をこの書類で行っている。"}]
[null,"し",{"$f":"'用語元'!A84","v":"支出負担行為書"},{"$f":"'用語元'!B84","v":"ししゅつふたんこういしょ"},{"$f":"'用語元'!C84","v":"発注の是非を伺うための書類。財務会計システムで作成する。"}]
[null,"し",{"$f":"'用語元'!A85","v":"支出命令書"},{"$f":"'用語元'!B85","v":"ししゅつめいれいしょ"},{"$f":"'用語元'!C85","v":"支出負担に基づき購入した物品の支払いを行う際に作成する書類。財務会計システムで作成する。"}]
[null,"じ",{"$f":"'用語元'!A86","v":"児童手当"},{"$f":"'用語元'!B86","v":"じどうてあて"},{"$f":"'用語元'!C86","v":"家庭等における生活の安定と、児童の健やかな健康を目的として、中学校修了前の児童を養育している者に対して支給される手当。毎年6，10，2月に前月までの4か月分が支給される。詳細は児童手当・特例給付支給事務処理要領を参照。"}]
[null,"し",{"$f":"'用語元'!A87","v":"市費"},{"$f":"'用語元'!B87","v":"しひ"},{"$f":"'用語元'!C87","v":"①市費職員の略。町の場合は町費職員、村の場合は村費職員と言う。\n　市町村によってさまざまな職種がある。\n（例：図書館業務従事臨時職員、個別支援推進補助員、学校支援員、スクールアシスタント、用務技士（本務・嘱託・臨時）、市費の地公臨、ODS　など）\n②市が負担・支出する費用のこと。市の経費。"}]
[null,"し",{"$f":"'用語元'!A88","v":"私費"},{"$f":"'用語元'!B88","v":"しひ"},{"$f":"'用語元'!C88","v":"保護者などから集金している会計の費用。"}]
[null,"し",{"$f":"'用語元'!A89","v":"就学援助"},{"$f":"'用語元'!B89","v":"しゅうがくえんじょ"},{"$f":"'用語元'!C89","v":"経済的な理由で児童生徒に義務教育を受けさせることが困難な保護者に、学校生活で必要な費用の一部を市町村が援助する制度。市町村が世帯の所得等を考慮して認定する。\n正式名：就学援助制度"}]
[null,"し",{"$f":"'用語元'!A90","v":"就学奨励費（特支奨励費）"},{"$f":"'用語元'!B90","v":"しゅうがくしょうれいひ（とくししょうれいひ）"},{"$f":"'用語元'!C90","v":"障害のある児童生徒が、各学校で学ぶ際に保護者が負担する教育関係経費について、家庭の経済状況等に応じ、国及び地方公共団体が補助する制度。\n正式名：特別支援教育就学奨励費"}]
[null,"し",{"$f":"'用語元'!A91","v":"収入"},{"$f":"'用語元'!B91","v":"しゅうにゅう"},{"$f":"'用語元'!C91","v":"給与から税金や社会保険料等を引く前の金額。"}]
[null,"し",{"$f":"'用語元'!A92","v":"出勤簿"},{"$f":"'用語元'!B92","v":"しゅっきんぼ"},{"$f":"'用語元'!C92","v":"教職員の出勤状況を押印により記録しておく帳簿。"}]
[null,"し",{"$f":"'用語元'!A93","v":"昇給"},{"$f":"'用語元'!B93","v":"しょうきゅう"},{"$f":"'用語元'!C93","v":"給料の号給が上がること。通常4月1日に行われ、前年度の1月末に次年度の昇給について記載した書類を作成する。"}]
[null,"し",{"$f":"'用語元'!A94","v":"消耗品"},{"$f":"'用語元'!B94","v":"しょうもうひん"},{"$f":"'用語元'!C94","v":"比較的短期間で使い切るものや安価なもの。市町村によっては備品でないものの総称。消耗品の中でも、ものによっては予算上の取り扱いが異なる場合があるので注意が必要。"}]
[null,"し",{"$f":"'用語元'!A95","v":"職印"},{"$f":"'用語元'!B95","v":"しょくいん"},{"$f":"'用語元'!C95","v":"主に校長などがその役職として押印するための印。重要な書類に押印することが多い。"}]
[null,"し",{"$f":"'用語元'!A96","v":"職員番号"},{"$f":"'用語元'!B96","v":"しょくいんばんごう"},{"$f":"'用語元'!C96","v":"教職員に付けられた番号。県費の正規・臨時的任用職員の場合は6桁の番号が与えられ、末尾に1桁追加されたものが組合員番号（保険証の番号）となる。臨時的任用職員は29から、再任用職員は6から始まる番号になっている。"}]
[null,"し",{"$f":"'用語元'!A97","v":"職免"},{"$f":"'用語元'!B97","v":"しょくめん"},{"$f":"'用語元'!C97","v":"職務専念義務免除の略。\n勤務時間内に所属長の許可を得て、一時的に職務を離れること。\n（例：運転免許更新、管理職試験、人間ドック、市町村が行う健康診断（校外で行われるもの））"}]
[null,"し",{"$f":"'用語元'!A98","v":"所得"},{"$f":"'用語元'!B98","v":"しょとく"},{"$f":"'用語元'!C98","v":"収入から社会保険料などの必要経費を差し引いた金額。所得を基に住民税や所得税が計算される。"}]
[null,"し",{"$f":"'用語元'!A99","v":"初任研"},{"$f":"'用語元'!B99","v":"しょにんけん"},{"$f":"'用語元'!C99","v":"初任者研修の略。\n一般には、県総合教育センター主催の研修講座を指すことが多いが、教育事務所や市町村教委等が主催する研修もある。"}]
[null,"じ",{"$f":"'用語元'!A100","v":"辞令"},{"$f":"'用語元'!B100","v":"じれい"},{"$f":"'用語元'!C100","v":"任用・免職・休職等に際して、その旨を記載して本人に渡す文書。"}]
[null,"じ",{"$f":"'用語元'!A101","v":"辞令交付式"},{"$f":"'用語元'!B101","v":"じれいこうふしき"},{"$f":"'用語元'!C101","v":"採用や異動時に辞令を交付する式典のこと。新規採用者については、県と配属される市町村がそれぞれ指定する場所で行われる。"}]
[null,"じ",{"$f":"'用語元'!A102","v":"人事管理システム"},{"$f":"'用語元'!B102","v":"じんじかんりしすてむ"},{"$f":"'用語元'!C102","v":"人事記録の閲覧や印刷、修正を行うシステム。サスティックキーから起動させる。"}]
[null,"じ",{"$f":"'用語元'!A103","v":"人事記録"},{"$f":"'用語元'!B103","v":"じんじきろく"},{"$f":"'用語元'!C103","v":"教職員の基本的な情報（採用年月日や住所・学歴など）や所有免許状、職歴などが記録されている。記載事項に変更があったときには、システムへの入力と「人事記録事項異動届」を提出する。また、臨時的任用職員はシステムに登録されないため、所属で個別に作成する。"}]
[null,"す",{"$f":"'用語元'!A104","v":"スキャナー"},{"$f":"'用語元'!B104","v":"すきゃなー"},{"$f":"'用語元'!C104","v":"紙ベースのものを読み取り、PDF形式などで保存する機械。\nコピー機（複合機）の機能として搭載されている場合もある。"}]
[null,"せ",{"$f":"'用語元'!A105","v":"専科"},{"$f":"'用語元'!B105","v":"せんか"},{"$f":"'用語元'!C105","v":"小学校で特定の教科を主として教える教員。"}]
[null,"ぜ",{"$f":"'用語元'!A106","v":"前期用教科書"},{"$f":"'用語元'!B106","v":"ぜんきようきょうかしょ"},{"$f":"'用語元'!C106","v":"4月1日～4月15日に配布し、学年当初から使用する教科書。"}]
[null,"ぜ",{"$f":"'用語元'!A107","v":"全事研"},{"$f":"'用語元'!B107","v":"ぜんじけん"},{"$f":"'用語元'!C107","v":"全国公立小中学校事務職員研究会の略。\n全事研の会員になるには年度ごとに会費を支払う。市町村によって会費の取り扱いが異なるので注意。"}]
[null,"せ",{"$f":"'用語元'!A108","v":"選択型厚生事業"},{"$f":"'用語元'!B108","v":"せんたくがたこうせいじぎょう"},{"$f":"'用語元'!C108","v":"互助会加入者に対して年に一度助成券が配布され、健康増進・元気回復につながる事業へ参加した場合にその費用の一部を支給する制度。"}]
[null,"そ",{"$f":"'用語元'!A109","v":"総額裁量制"},{"$f":"'用語元'!B109","v":"そうがくさいりょうせい"},{"$f":"'用語元'!C109","v":"教育委員会が示した金額の中で学校が自由に予算を組むことができる制度。"}]
[null,"そ",{"$f":"'用語元'!A110","v":"卒業証明書"},{"$f":"'用語元'!B110","v":"そつぎょうしょうめいしょ"},{"$f":"'用語元'!C110","v":"卒業生がその学校を卒業したことを証明する書類。"}]
[null,"ち",{"$f":"'用語元'!A111","v":"地公臨"},{"$f":"'用語元'!B111","v":"ちこうりん"},{"$f":"'用語元'!C111","v":"地方公務員法に基づく臨時的任用職員の略。\n通常4月1日～9月30日まで任用された後、任用期間が更新され、10月1日～3月31日まで勤務する臨時的任用職員。ただし、休職者の代わりに任用される地公臨もおり、その場合は休職期間に合わせて任用される。"}]
[null,"ち",{"$f":"'用語元'!A112","v":"置籍"},{"$f":"'用語元'!B112","v":"ちせき"},{"$f":"'用語元'!C112","v":"学校に籍を置いたまま、市町村教委・県総合教育センターの指導主事（＝充て指導主事）、内地留学者等となっている状態。"}]
[null,"ち",{"$f":"'用語元'!A113","v":"中等教育学校"},{"$f":"'用語元'!B113","v":"ちゅうとうきょういくがっこう"},{"$f":"'用語元'!C113","v":"中学校から高等学校までの教育が一貫して行われる学校。"}]
[null,"ち",{"$f":"'用語元'!A114","v":"丁合機"},{"$f":"'用語元'!B114","v":"ちょうあいき"},{"$f":"'用語元'!C114","v":"丁合（製本の際にページ順に揃え1冊にまとめる作業）を自動で行う機械。"}]
[null,"ち",{"$f":"'用語元'!A115","v":"長研"},{"$f":"'用語元'!B115","v":"ちょうけん"},{"$f":"'用語元'!C115","v":"県総合教育センターの主催する「長期研修」の略。\n基本的には、毎日県総合教育センターまたは市町村の指定する場所での勤務になる。\nなお、一部市町村では独自に長期研修を行っている。"}]
[null,"つ",{"$f":"'用語元'!A116","v":"追給"},{"$f":"'用語元'!B116","v":"ついきゅう"},{"$f":"'用語元'!C116","v":"支払いが済んだ支出に対して、本来支払うべき金額のうち不足している分を追加で支出すること。\n（例：管理職手当の区分が間違っていたため、過去の分について追給する）"}]
[null,"て",{"$f":"'用語元'!A117","v":"手当"},{"$f":"'用語元'!B117","v":"てあて"},{"$f":"'用語元'!C117","v":"給与の中で給料以外に職務や本人の生活状況に応じて支給されるものの総称。通勤・住居・扶養手当などがある。詳細は給与実務の手引や各種手当の手引等を参照。"}]
[null,"て",{"$f":"'用語元'!A118","v":"訂正印"},{"$f":"'用語元'!B118","v":"ていせいいん"},{"$f":"'用語元'!C118","v":"文書の一部を訂正するときに押す印のこと。通常、訂正部分に二重線を引き、線の上に押す。"}]
[null,"て",{"$f":"'用語元'!A119","v":"転学用教科書"},{"$f":"'用語元'!B119","v":"てんがくようきょうかしょ"},{"$f":"'用語元'!C119","v":"転入した児童生徒がその学校で使用している教科書を持っていない場合に給与する教科書。前期・後期に分けられ、前期は4月1日～8月31日、後期は9月1日～2月末日に転入してきた者に給与する。3月以降の転入者には教科書給与はないので注意。"}]
[null,"て",{"$f":"'用語元'!A120","v":"転出"},{"$f":"'用語元'!B120","v":"てんしゅつ"},{"$f":"'用語元'!C120","v":"教職員が他の所属へ異動すること。\n児童生徒が他の学校へ転校すること。"}]
[null,"て",{"$f":"'用語元'!A121","v":"転入"},{"$f":"'用語元'!B121","v":"てんにゅう"},{"$f":"'用語元'!C121","v":"教職員が他の所属から異動してくること。\n児童生徒が他の学校から転校してくること。"}]
[null,"て",{"$f":"'用語元'!A122","v":"転任"},{"$f":"'用語元'!B122","v":"てんにん"},{"$f":"'用語元'!C122","v":"教職員が別の市町村の学校へ異動すること。"}]
[null,"て",{"$f":"'用語元'!A123","v":"転補"},{"$f":"'用語元'!B123","v":"てんぽ"},{"$f":"'用語元'!C123","v":"教職員が同じ市町村内の学校へ異動すること。"}]
[null,"と",{"$f":"'用語元'!A124","v":"特研"},{"$f":"'用語元'!B124","v":"とっけん"},{"$f":"'用語元'!C124","v":"県総合教育センターの主催する「特別研修」の略。\n週に1回程度県総合教育センターまたは市町村の指定する場所で研修を受ける。\nなお、一部市町村では独自に特別研修を行っている。"}]
[null,"と",{"$f":"'用語元'!A125","v":"トナー"},{"$f":"'用語元'!B125","v":"となー"},{"$f":"'用語元'!C125","v":"レーザープリンタの印刷に必要なものであり、インクジェットプリンタのインクと同様のもの。通常カートリッジに入っているので、なくなった場合はカートリッジごと交換する。"}]
[null,"な",{"$f":"'用語元'!A126","v":"内地留学"},{"$f":"'用語元'!B126","v":"ないちりゅうがく"},{"$f":"'用語元'!C126","v":"専修免許状を取得するため、給与を支給されながら大学院に入学すること。1年目は通常の通学で、2年目は学校に勤務しながら通う。"}]
[null,"に",{"$f":"'用語元'!A127","v":"任期付育休代替学校職員"},{"$f":"'用語元'!B127","v":"にんきつきいくきゅうだいたいがっこうしょくいん"},{"$f":"'用語元'!C127","v":"1年を超える育児休業を取得している教職員の代替で務める臨時的任用職員のこと。育休補助任用とは異なり、同一人物の育休に対して2年連続で代替することが可能。"}]
[null,"に",{"$f":"'用語元'!A128","v":"任命権者"},{"$f":"'用語元'!B128","v":"にんめいけんじゃ"},{"$f":"'用語元'!C128","v":"公務員の任用・免職・休職・懲戒等について権限を有する者。県費教職員の場合は群馬県教育委員会教育長。"}]
[null,"ね",{"$f":"'用語元'!A129","v":"年間行事予定表"},{"$f":"'用語元'!B129","v":"ねんかんぎょうじよていひょう"},{"$f":"'用語元'!C129","v":"学校でその年度内に行われる予定を一覧にまとめたもの。前年度末から年度始めに配布される。"}]
[null,"ね",{"$f":"'用語元'!A130","v":"年度"},{"$f":"'用語元'!B130","v":"ねんど"},{"$f":"'用語元'!C130","v":"通常の1月～12月までの1年とは異なる区切りで切り取られた1年間のこと。基本的に4月～翌年3月まで。"}]
[null,"ね",{"$f":"'用語元'!A131","v":"年末調整"},{"$f":"'用語元'!B131","v":"ねんまつちょうせい"},{"$f":"'用語元'!C131","v":"毎年年末に所得税について納税額の過不足を精算する処理。学校では、11月～1月初旬にかけて事務処理を行う。"}]
[null,"は",{"$f":"'用語元'!A132","v":"廃インク（トナー）ボックス"},{"$f":"'用語元'!B132","v":"はいいんく（となー）ぼっくす"},{"$f":"'用語元'!C132","v":"プリンタが印刷する際に余ったインク（トナー）が自動で入るボックス。満タンになると交換する必要がある。"}]
[null,"は",{"$f":"'用語元'!A133","v":"配送（使送）"},{"$f":"'用語元'!B133","v":"はいそう（しそう）"},{"$f":"'用語元'!C133","v":"学校が教育委員会等の公的機関と書類のやりとりをする手段。市町村によって決められた人員が書類の配布や回収を行う。呼び名や頻度は市町村によって異なる。"}]
[null,"び",{"$f":"'用語元'!A134","v":"B5用紙"},{"$f":"'用語元'!B134","v":"びーごようし"},{"$f":"'用語元'!C134","v":"B4用紙の1/2サイズの紙（182mm×257mm）　\n文書よりもおたよりや宿題など教育にかかわる部分で使われることが多い。"}]
[null,"び",{"$f":"'用語元'!A135","v":"B4用紙"},{"$f":"'用語元'!B135","v":"びーよんようし"},{"$f":"'用語元'!C135","v":"B5用紙の2倍サイズの紙（257mm×364mm）　\n文書よりもおたよりや宿題など教育にかかわる部分で使われることが多い。"}]
[null,"び",{"$f":"'用語元'!A136","v":"備品"},{"$f":"'用語元'!B136","v":"びひん"},{"$f":"'用語元'!C136","v":"長期に渡り使用する物品で比較的高額なもの。市町村によっては番号を振って帳簿で管理したり、金額によって備品になるかどうか決めたりする。"}]
[null,"ふ",{"$f":"'用語元'!A137","v":"封筒（角0）"},{"$f":"'用語元'!B137","v":"ふうとう（かくぜろ）"},{"$f":"'用語元'!C137","v":"書類を送る際に使う封筒の中でも最大級のもの（287mm×382mm）\nB4用紙が折らずに入り、角2封筒を入れるために使われることもある。"}]
[null,"ふ",{"$f":"'用語元'!A138","v":"封筒（角2）"},{"$f":"'用語元'!B138","v":"ふうとう（かくに）"},{"$f":"'用語元'!C138","v":"書類を送る際に使う封筒の中でも大きめのもの（240mm×332mm）\nA4用紙が折らずに入る。"}]
[null,"ふ",{"$f":"'用語元'!A139","v":"封筒（長形30）"},{"$f":"'用語元'!B139","v":"ふうとう（なががたさんじゅう）"},{"$f":"'用語元'!C139","v":"書類を送る際に使う封筒の中でもかなり細長いもの（92mm×235mm）\nA4用紙の4つ折りが入る。"}]
[null,"ふ",{"$f":"'用語元'!A140","v":"封筒（長3）"},{"$f":"'用語元'!B140","v":"ふうとう（ながさん）"},{"$f":"'用語元'!C140","v":"書類を送る際に使う封筒の中でやや細長いもの（120mm×235mm）\nA4用紙3つ折りが入る他、郵便用としてもよく使われる。"}]
[null,"ふ",{"$f":"'用語元'!A142","v":"復命"},{"$f":"'用語元'!B142","v":"ふくめい"},{"$f":"'用語元'!C142","v":"命令に従って行った事の経過・結果を命令者に報告すること。出張や研修の後に行われることが多い。"}]
[null,"ふ",{"$f":"'用語元'!A143","v":"赴任旅費"},{"$f":"'用語元'!B143","v":"ふにんりょひ"},{"$f":"'用語元'!C143","v":"赴任に伴い支給される旅費。新規採用者・異動者で住居を移転する場合は添付書類として住民票などが必要になる。"}]
[null,"ふ",{"$f":"'用語元'!A144","v":"扶養"},{"$f":"'用語元'!B144","v":"ふよう"},{"$f":"'用語元'!C144","v":"主に近親者を養っている状態のこと。手当の支給や保険証の発行、税制上の優遇などのメリットがあるが、制度によって認定の基準が異なる他、定期的に基準を満たしているか確認をする必要がある。"}]
[null,"ふ",{"$f":"'用語元'!A145","v":"フラットファイル"},{"$f":"'用語元'!B145","v":"ふらっとふぁいる"},{"$f":"'用語元'!C145","v":"書類を綴っておくためのファイル。A4の紙製が多いが、A5やB4などさまざまなサイズ、プラスチック製、背表紙が伸び広がり綴じられる枚数が多いタイプなどがあり、用途に応じて使い分けることができる。"}]
[null,"へ",{"$f":"'用語元'!A146","v":"へき地"},{"$f":"'用語元'!B146","v":"へきち"},{"$f":"'用語元'!C146","v":"山間や離島など生活に不便とされる地域。へき地に指定された地域の学校に勤務する教職員はへき地手当等が支給される。なお、手当は出ないが、誓約の対象となる人事上のへき地もある。"}]
[null,"べ",{"$f":"'用語元'!A147","v":"別途支給"},{"$f":"'用語元'!B147","v":"べっとしきゅう"},{"$f":"'用語元'!C147","v":"部活動の大会役員や出張の際に関係機関から交通費などが支給されること。旅費システムでは「他費」にチェックを入れないと二重に支給することになるため、注意が必要。"}]
[null,"ま",{"$f":"'用語元'!A148","v":"マスター"},{"$f":"'用語元'!B148","v":"ますたー"},{"$f":"'用語元'!C148","v":"印刷機で、印刷の基として作る版に使われる用紙。一般的にロールに巻かれている。"}]
[null,"よ",{"$f":"'用語元'!A149","v":"四つ切り・八つ切り"},{"$f":"'用語元'!B149","v":"よつぎり・やつぎり"},{"$f":"'用語元'!C149","v":"サイズの規格。1枚を4つまたは8つに分けた大きさ。学校では主に画用紙のサイズとして使うことが多い。"}]
[null,"ら",{"$f":"'用語元'!A150","v":"ラミネーター"},{"$f":"'用語元'!B150","v":"らみねーたー"},{"$f":"'用語元'!C150","v":"熱によりフィルム同士を貼り付けて用紙をフィルムで保護（ラミネート）された状態にする機械。用紙サイズに応じたフィルムが必要。"}]
[null,"り",{"$f":"'用語元'!A151","v":"リース"},{"$f":"'用語元'!B151","v":"りーす"},{"$f":"'用語元'!C151","v":"料金を支払い、決められた期間で物品を業者から借りること。"}]
[null,"り",{"$f":"'用語元'!A152","v":"理振法"},{"$f":"'用語元'!B152","v":"りしんほう"},{"$f":"'用語元'!C152","v":"理科教育振興法の略。\n理科・算数（数学）の授業で使われる特定の物品・備品に対して、購入する前に申請することで国から補助金が支給される制度。教育委員会が取りまとめていたり、購入・廃棄を台帳管理する必要があったりするので、注意が必要。"}]
[null,"り",{"$f":"'用語元'!A153","v":"リフレッシュ休暇"},{"$f":"'用語元'!B153","v":"りふれっしゅきゅうか"},{"$f":"'用語元'!C153","v":"決められた勤続条件・年齢条件を満たした場合に正規職員が取得できる休暇。30歳、40歳、50歳の3区分があり、40歳以降は特別休暇を取得できる。また、互助会の会員である場合は図書券または旅行券が配布される。"}]
[null,"り",{"$f":"'用語元'!A154","v":"流用"},{"$f":"'用語元'!B154","v":"りゅうよう"},{"$f":"'用語元'!C154","v":"ある支出科目の予算を減らして、別の支出科目へ充てること。\n（例：燃料費が不足したため消耗品費から流用する）"}]
[null,"り",{"$f":"'用語元'!A155","v":"旅行雑費"},{"$f":"'用語元'!B155","v":"りょこうざっぴ"},{"$f":"'用語元'!C155","v":"旅費の項目であり、県外旅行において1日単位で定額が支給される。なお実費が定額を超える場合はその分も支給される。（1日の上限あり）私有車を利用した場合は基本的に支給されない。"}]
[null,"り",{"$f":"'用語元'!A156","v":"旅費"},{"$f":"'用語元'!B156","v":"りょひ"},{"$f":"'用語元'!C156","v":"出張に行った際に掛かった費用を支給するもの。交通手段・金額によって添付書類が必要となったり、事前の申請が必要であったりするので注意。支給は旅費システムに入力して各個人の口座へ振り込まれる。"}]
[null,"り",{"$f":"'用語元'!A157","v":"旅費システム"},{"$f":"'用語元'!B157","v":"りょひしすてむ"},{"$f":"'用語元'!C157","v":"旅費のデータを入力するためのシステム。給与システムとは異なり、自分のアカウントで共同学校事務室内の学校のデータが閲覧できる。サスティックキーから起動させる。\n正式名：旅費計算システム"}]
[null,"り",{"$f":"'用語元'!A158","v":"臨時的任用職員"},{"$f":"'用語元'!B158","v":"りんじてきにんようしょくいん"},{"$f":"'用語元'!C158","v":"地公臨や各種補助職員のことを言う。県費がほとんどだが、市町村で任用されている者もいるため、市町村により職名・業務が異なる場合がある。"}]
[null,"れ",{"$f":"'用語元'!A159","v":"例月"},{"$f":"'用語元'!B159","v":"れいげつ"},{"$f":"'用語元'!C159","v":"業務が毎月行われることを意味しており、主に給与の事務処理の単位として使われる。\n（例：5月例月⇒5月の　と読みかえられる）"}]
[null,"れ",{"$f":"'用語元'!A160","v":"戻入"},{"$f":"'用語元'!B160","v":"れいにゅう"},{"$f":"'用語元'!C160","v":"支払いが済んだ支出に対して、過払いした金額を返還すること。\n（例：誤って支給された給与を戻入処理する）"}]
[null,"",{"$f":"'用語元'!A161","v":""},{"$f":"'用語元'!B161","v":""},{"$f":"'用語元'!C161","v":""}]
[null,"",{"$f":"'用語元'!A162","v":""},{"$f":"'用語元'!B162","v":""},{"$f":"'用語元'!C162","v":""}]
[null,"",{"$f":"'用語元'!A163","v":""},{"$f":"'用語元'!B163","v":""},{"$f":"'用語元'!C163","v":""}]
[null,"",{"$f":"'用語元'!A164","v":""},{"$f":"'用語元'!B164","v":""},{"$f":"'用語元'!C164","v":""}]
[null,"",{"$f":"'用語元'!A165","v":""},{"$f":"'用語元'!B165","v":""},{"$f":"'用語元'!C165","v":""}]
[null,"",{"$f":"'用語元'!A166","v":""},{"$f":"'用語元'!B166","v":""},{"$f":"'用語元'!C166","v":""}]
[null,"",{"$f":"'用語元'!A167","v":""},{"$f":"'用語元'!B167","v":""},{"$f":"'用語元'!C167","v":""}]
[null,"",{"$f":"'用語元'!A168","v":""},{"$f":"'用語元'!B168","v":""},{"$f":"'用語元'!C168","v":""}]
[null,"",{"$f":"'用語元'!A169","v":""},{"$f":"'用語元'!B169","v":""},{"$f":"'用語元'!C169","v":""}]
[null,"",{"$f":"'用語元'!A170","v":""},{"$f":"'用語元'!B170","v":""},{"$f":"'用語元'!C170","v":""}]
[null,"",{"$f":"'用語元'!A171","v":""},{"$f":"'用語元'!B171","v":""},{"$f":"'用語元'!C171","v":""}]
[null,"",{"$f":"'用語元'!A172","v":""},{"$f":"'用語元'!B172","v":""},{"$f":"'用語元'!C172","v":""}]
[null,"",{"$f":"'用語元'!A173","v":""},{"$f":"'用語元'!B173","v":""},{"$f":"'用語元'!C173","v":""}]
[null,"",{"$f":"'用語元'!A174","v":""},{"$f":"'用語元'!B174","v":""},{"$f":"'用語元'!C174","v":""}]
[null,"",{"$f":"'用語元'!A175","v":""},{"$f":"'用語元'!B175","v":""},{"$f":"'用語元'!C175","v":""}]
[null,"",{"$f":"'用語元'!A176","v":""},{"$f":"'用語元'!B176","v":""},{"$f":"'用語元'!C176","v":""}]
[null,"",{"$f":"'用語元'!A177","v":""},{"$f":"'用語元'!B177","v":""},{"$f":"'用語元'!C177","v":""}]
[null,"",{"$f":"'用語元'!A178","v":""},{"$f":"'用語元'!B178","v":""},{"$f":"'用語元'!C178","v":""}]
[null,"",{"$f":"'用語元'!A179","v":""},{"$f":"'用語元'!B179","v":""},{"$f":"'用語元'!C179","v":""}]
[null,"",{"$f":"'用語元'!A180","v":""},{"$f":"'用語元'!B180","v":""},{"$f":"'用語元'!C180","v":""}]
[null,"",{"$f":"'用語元'!A181","v":""},{"$f":"'用語元'!B181","v":""},{"$f":"'用語元'!C181","v":""}]
[null,"",{"$f":"'用語元'!A182","v":""},{"$f":"'用語元'!B182","v":""},{"$f":"'用語元'!C182","v":""}]
[null,"",{"$f":"'用語元'!A183","v":""},{"$f":"'用語元'!B183","v":""},{"$f":"'用語元'!C183","v":""}]
[null,"",{"$f":"'用語元'!A184","v":""},{"$f":"'用語元'!B184","v":""},{"$f":"'用語元'!C184","v":""}]
[null,"",{"$f":"'用語元'!A185","v":""},{"$f":"'用語元'!B185","v":""},{"$f":"'用語元'!C185","v":""}]
[null,"",{"$f":"'用語元'!A186","v":""},{"$f":"'用語元'!B186","v":""},{"$f":"'用語元'!C186","v":""}]
[null,"",{"$f":"'用語元'!A187","v":""},{"$f":"'用語元'!B187","v":""},{"$f":"'用語元'!C187","v":""}]
[null,"",{"$f":"'用語元'!A188","v":""},{"$f":"'用語元'!B188","v":""},{"$f":"'用語元'!C188","v":""}]
[null,"",{"$f":"'用語元'!A189","v":""},{"$f":"'用語元'!B189","v":""},{"$f":"'用語元'!C189","v":""}]
[null,"",{"$f":"'用語元'!A190","v":""},{"$f":"'用語元'!B190","v":""},{"$f":"'用語元'!C190","v":""}]
[null,"",{"$f":"'用語元'!A191","v":""},{"$f":"'用語元'!B191","v":""},{"$f":"'用語元'!C191","v":""}]
[null,"",{"$f":"'用語元'!A192","v":""},{"$f":"'用語元'!B192","v":""},{"$f":"'用語元'!C192","v":""}]
[null,"",{"$f":"'用語元'!A193","v":""},{"$f":"'用語元'!B193","v":""},{"$f":"'用語元'!C193","v":""}]
[null,"",{"$f":"'用語元'!A194","v":""},{"$f":"'用語元'!B194","v":""},{"$f":"'用語元'!C194","v":""}]
[null,"",{"$f":"'用語元'!A195","v":""},{"$f":"'用語元'!B195","v":""},{"$f":"'用語元'!C195","v":""}]
[null,"",{"$f":"'用語元'!A196","v":""},{"$f":"'用語元'!B196","v":""},{"$f":"'用語元'!C196","v":""}]
[null,"",{"$f":"'用語元'!A197","v":""},{"$f":"'用語元'!B197","v":""},{"$f":"'用語元'!C197","v":""}]
[null,"",{"$f":"'用語元'!A198","v":""},{"$f":"'用語元'!B198","v":""},{"$f":"'用語元'!C198","v":""}]
[null,"",{"$f":"'用語元'!A199","v":""},{"$f":"'用語元'!B199","v":""},{"$f":"'用語元'!C199","v":""}]
[null,"",{"$f":"'用語元'!A200","v":""},{"$f":"'用語元'!B200","v":""},{"$f":"'用語元'!C200","v":""}]
[null,"",{"$f":"'用語元'!A201","v":""},{"$f":"'用語元'!B201","v":""},{"$f":"'用語元'!C201","v":""}]
[null,"",{"$f":"'用語元'!A202","v":""},{"$f":"'用語元'!B202","v":""},{"$f":"'用語元'!C202","v":""}]
[null,"",{"$f":"'用語元'!A203","v":""},{"$f":"'用語元'!B203","v":""},{"$f":"'用語元'!C203","v":""}]
[null,"",{"$f":"'用語元'!A204","v":""},{"$f":"'用語元'!B204","v":""},{"$f":"'用語元'!C204","v":""}]
[null,"",{"$f":"'用語元'!A205","v":""},{"$f":"'用語元'!B205","v":""},{"$f":"'用語元'!C205","v":""}]
[null,"",{"$f":"'用語元'!A206","v":""},{"$f":"'用語元'!B206","v":""},{"$f":"'用語元'!C206","v":""}]
[null,"",{"$f":"'用語元'!A207","v":""},{"$f":"'用語元'!B207","v":""},{"$f":"'用語元'!C207","v":""}]
[null,"",{"$f":"'用語元'!A208","v":""},{"$f":"'用語元'!B208","v":""},{"$f":"'用語元'!C208","v":""}]
[null,"",{"$f":"'用語元'!A209","v":""},{"$f":"'用語元'!B209","v":""},{"$f":"'用語元'!C209","v":""}]
[null,"",{"$f":"'用語元'!A210","v":""},{"$f":"'用語元'!B210","v":""},{"$f":"'用語元'!C210","v":""}]
[null,"",{"$f":"'用語元'!A211","v":""},{"$f":"'用語元'!B211","v":""},{"$f":"'用語元'!C211","v":""}]
[null,"",{"$f":"'用語元'!A212","v":""},{"$f":"'用語元'!B212","v":""},{"$f":"'用語元'!C212","v":""}]
[null,"",{"$f":"'用語元'!A213","v":""},{"$f":"'用語元'!B213","v":""},{"$f":"'用語元'!C213","v":""}]
[null,"",{"$f":"'用語元'!A214","v":""},{"$f":"'用語元'!B214","v":""},{"$f":"'用語元'!C214","v":""}]
[null,"",{"$f":"'用語元'!A215","v":""},{"$f":"'用語元'!B215","v":""},{"$f":"'用語元'!C215","v":""}]
[null,"",{"$f":"'用語元'!A216","v":""},{"$f":"'用語元'!B216","v":""},{"$f":"'用語元'!C216","v":""}]
[null,"",{"$f":"'用語元'!A217","v":""},{"$f":"'用語元'!B217","v":""},{"$f":"'用語元'!C217","v":""}]
[null,"",{"$f":"'用語元'!A218","v":""},{"$f":"'用語元'!B218","v":""},{"$f":"'用語元'!C218","v":""}]
[null,"",{"$f":"'用語元'!A219","v":""},{"$f":"'用語元'!B219","v":""},{"$f":"'用語元'!C219","v":""}]
[null,"",{"$f":"'用語元'!A220","v":""},{"$f":"'用語元'!B220","v":""},{"$f":"'用語元'!C220","v":""}]
[null,"",{"$f":"'用語元'!A221","v":""},{"$f":"'用語元'!B221","v":""},{"$f":"'用語元'!C221","v":""}]
[null,"",{"$f":"'用語元'!A222","v":""},{"$f":"'用語元'!B222","v":""},{"$f":"'用語元'!C222","v":""}]
[null,"",{"$f":"'用語元'!A223","v":""},{"$f":"'用語元'!B223","v":""},{"$f":"'用語元'!C223","v":""}]
[null,"",{"$f":"'用語元'!A224","v":""},{"$f":"'用語元'!B224","v":""},{"$f":"'用語元'!C224","v":""}]
[null,"",{"$f":"'用語元'!A225","v":""},{"$f":"'用語元'!B225","v":""},{"$f":"'用語元'!C225","v":""}]
[null,"",{"$f":"'用語元'!A226","v":""},{"$f":"'用語元'!B226","v":""},{"$f":"'用語元'!C226","v":""}]
[null,"",{"$f":"'用語元'!A227","v":""},{"$f":"'用語元'!B227","v":""},{"$f":"'用語元'!C227","v":""}]
[null,"",{"$f":"'用語元'!A228","v":""},{"$f":"'用語元'!B228","v":""},{"$f":"'用語元'!C228","v":""}]
[null,"",{"$f":"'用語元'!A229","v":""},{"$f":"'用語元'!B229","v":""},{"$f":"'用語元'!C229","v":""}]
[null,"",{"$f":"'用語元'!A230","v":""},{"$f":"'用語元'!B230","v":""},{"$f":"'用語元'!C230","v":""}]
[null,"",{"$f":"'用語元'!A231","v":""},{"$f":"'用語元'!B231","v":""},{"$f":"'用語元'!C231","v":""}]
[null,"",{"$f":"'用語元'!A232","v":""},{"$f":"'用語元'!B232","v":""},{"$f":"'用語元'!C232","v":""}]
[null,"",{"$f":"'用語元'!A233","v":""},{"$f":"'用語元'!B233","v":""},{"$f":"'用語元'!C233","v":""}]
[null,"",{"$f":"'用語元'!A234","v":""},{"$f":"'用語元'!B234","v":""},{"$f":"'用語元'!C234","v":""}]
[null,"",{"$f":"'用語元'!A235","v":""},{"$f":"'用語元'!B235","v":""},{"$f":"'用語元'!C235","v":""}]
[null,"",{"$f":"'用語元'!A236","v":""},{"$f":"'用語元'!B236","v":""},{"$f":"'用語元'!C236","v":""}]
[null,"",{"$f":"'用語元'!A237","v":""},{"$f":"'用語元'!B237","v":""},{"$f":"'用語元'!C237","v":""}]
[null,"",{"$f":"'用語元'!A238","v":""},{"$f":"'用語元'!B238","v":""},{"$f":"'用語元'!C238","v":""}]
[null,"",{"$f":"'用語元'!A239","v":""},{"$f":"'用語元'!B239","v":""},{"$f":"'用語元'!C239","v":""}]
[null,"",{"$f":"'用語元'!A240","v":""},{"$f":"'用語元'!B240","v":""},{"$f":"'用語元'!C240","v":""}]
[null,"",{"$f":"'用語元'!A241","v":""},{"$f":"'用語元'!B241","v":""},{"$f":"'用語元'!C241","v":""}]
[null,"",{"$f":"'用語元'!A242","v":""},{"$f":"'用語元'!B242","v":""},{"$f":"'用語元'!C242","v":""}]
[null,"",{"$f":"'用語元'!A243","v":""},{"$f":"'用語元'!B243","v":""},{"$f":"'用語元'!C243","v":""}]
[null,"",{"$f":"'用語元'!A244","v":""},{"$f":"'用語元'!B244","v":""},{"$f":"'用語元'!C244","v":""}]
[null,"",{"$f":"'用語元'!A245","v":""},{"$f":"'用語元'!B245","v":""},{"$f":"'用語元'!C245","v":""}]
[null,"",{"$f":"'用語元'!A246","v":""},{"$f":"'用語元'!B246","v":""},{"$f":"'用語元'!C246","v":""}]
[null,"",{"$f":"'用語元'!A247","v":""},{"$f":"'用語元'!B247","v":""},{"$f":"'用語元'!C247","v":""}]
[null,"",{"$f":"'用語元'!A248","v":""},{"$f":"'用語元'!B248","v":""},{"$f":"'用語元'!C248","v":""}]
[null,"",{"$f":"'用語元'!A249","v":""},{"$f":"'用語元'!B249","v":""},{"$f":"'用語元'!C249","v":""}]
[null,"",{"$f":"'用語元'!A250","v":""},{"$f":"'用語元'!B250","v":""},{"$f":"'用語元'!C250","v":""}]
[null,"",{"$f":"'用語元'!A251","v":""},{"$f":"'用語元'!B251","v":""},{"$f":"'用語元'!C251","v":""}]
[null,"",{"$f":"'用語元'!A252","v":""},{"$f":"'用語元'!B252","v":""},{"$f":"'用語元'!C252","v":""}]
[null,"",{"$f":"'用語元'!A253","v":""},{"$f":"'用語元'!B253","v":""},{"$f":"'用語元'!C253","v":""}]
[null,"",{"$f":"'用語元'!A254","v":""},{"$f":"'用語元'!B254","v":""},{"$f":"'用語元'!C254","v":""}]
[null,"",{"$f":"'用語元'!A255","v":""},{"$f":"'用語元'!B255","v":""},{"$f":"'用語元'!C255","v":""}]
[null,"",{"$f":"'用語元'!A256","v":""},{"$f":"'用語元'!B256","v":""},{"$f":"'用語元'!C256","v":""}]
[null,"",{"$f":"'用語元'!A257","v":""},{"$f":"'用語元'!B257","v":""},{"$f":"'用語元'!C257","v":""}]
[null,"",{"$f":"'用語元'!A258","v":""},{"$f":"'用語元'!B258","v":""},{"$f":"'用語元'!C258","v":""}]
[null,"",{"$f":"'用語元'!A259","v":""},{"$f":"'用語元'!B259","v":""},{"$f":"'用語元'!C259","v":""}]
[null,"",{"$f":"'用語元'!A260","v":""},{"$f":"'用語元'!B260","v":""},{"$f":"'用語元'!C260","v":""}]
[null,"",{"$f":"'用語元'!A261","v":""},{"$f":"'用語元'!B261","v":""},{"$f":"'用語元'!C261","v":""}]
[null,"",{"$f":"'用語元'!A262","v":""},{"$f":"'用語元'!B262","v":""},{"$f":"'用語元'!C262","v":""}]
[null,"",{"$f":"'用語元'!A263","v":""},{"$f":"'用語元'!B263","v":""},{"$f":"'用語元'!C263","v":""}]
[null,"",{"$f":"'用語元'!A264","v":""},{"$f":"'用語元'!B264","v":""},{"$f":"'用語元'!C264","v":""}]
[null,"",{"$f":"'用語元'!A265","v":""},{"$f":"'用語元'!B265","v":""},{"$f":"'用語元'!C265","v":""}]
[null,"",{"$f":"'用語元'!A266","v":""},{"$f":"'用語元'!B266","v":""},{"$f":"'用語元'!C266","v":""}]
[null,"",{"$f":"'用語元'!A267","v":""},{"$f":"'用語元'!B267","v":""},{"$f":"'用語元'!C267","v":""}]
[null,"",{"$f":"'用語元'!A268","v":""},{"$f":"'用語元'!B268","v":""},{"$f":"'用語元'!C268","v":""}]
[null,"",{"$f":"'用語元'!A269","v":""},{"$f":"'用語元'!B269","v":""},{"$f":"'用語元'!C269","v":""}]
[null,"",{"$f":"'用語元'!A270","v":""},{"$f":"'用語元'!B270","v":""},{"$f":"'用語元'!C270","v":""}]
[null,"",{"$f":"'用語元'!A271","v":""},{"$f":"'用語元'!B271","v":""},{"$f":"'用語元'!C271","v":""}]
[null,"",{"$f":"'用語元'!A272","v":""},{"$f":"'用語元'!B272","v":""},{"$f":"'用語元'!C272","v":""}]
[null,"",{"$f":"'用語元'!A273","v":""},{"$f":"'用語元'!B273","v":""},{"$f":"'用語元'!C273","v":""}]
[null,"",{"$f":"'用語元'!A274","v":""},{"$f":"'用語元'!B274","v":""},{"$f":"'用語元'!C274","v":""}]
[null,"",{"$f":"'用語元'!A275","v":""},{"$f":"'用語元'!B275","v":""},{"$f":"'用語元'!C275","v":""}]
[null,"",{"$f":"'用語元'!A276","v":""},{"$f":"'用語元'!B276","v":""},{"$f":"'用語元'!C276","v":""}]
[null,"",{"$f":"'用語元'!A277","v":""},{"$f":"'用語元'!B277","v":""},{"$f":"'用語元'!C277","v":""}]
[null,"",{"$f":"'用語元'!A278","v":""},{"$f":"'用語元'!B278","v":""},{"$f":"'用語元'!C278","v":""}]
[null,"",{"$f":"'用語元'!A279","v":""},{"$f":"'用語元'!B279","v":""},{"$f":"'用語元'!C279","v":""}]
[null,"",{"$f":"'用語元'!A280","v":""},{"$f":"'用語元'!B280","v":""},{"$f":"'用語元'!C280","v":""}]
[null,"",{"$f":"'用語元'!A281","v":""},{"$f":"'用語元'!B281","v":""},{"$f":"'用語元'!C281","v":""}]
[null,"",{"$f":"'用語元'!A282","v":""},{"$f":"'用語元'!B282","v":""},{"$f":"'用語元'!C282","v":""}]
[null,"",{"$f":"'用語元'!A283","v":""},{"$f":"'用語元'!B283","v":""},{"$f":"'用語元'!C283","v":""}]
[null,"",{"$f":"'用語元'!A284","v":""},{"$f":"'用語元'!B284","v":""},{"$f":"'用語元'!C284","v":""}]
[null,"",{"$f":"'用語元'!A285","v":""},{"$f":"'用語元'!B285","v":""},{"$f":"'用語元'!C285","v":""}]
[null,"",{"$f":"'用語元'!A286","v":""},{"$f":"'用語元'!B286","v":""},{"$f":"'用語元'!C286","v":""}]
[null,"",{"$f":"'用語元'!A287","v":""},{"$f":"'用語元'!B287","v":""},{"$f":"'用語元'!C287","v":""}]
[null,"",{"$f":"'用語元'!A288","v":""},{"$f":"'用語元'!B288","v":""},{"$f":"'用語元'!C288","v":""}]
[null,"",{"$f":"'用語元'!A289","v":""},{"$f":"'用語元'!B289","v":""},{"$f":"'用語元'!C289","v":""}]
[null,"",{"$f":"'用語元'!A290","v":""},{"$f":"'用語元'!B290","v":""},{"$f":"'用語元'!C290","v":""}]
[null,"",{"$f":"'用語元'!A291","v":""},{"$f":"'用語元'!B291","v":""},{"$f":"'用語元'!C291","v":""}]
[null,"",{"$f":"'用語元'!A292","v":""},{"$f":"'用語元'!B292","v":""},{"$f":"'用語元'!C292","v":""}]
[null,"",{"$f":"'用語元'!A293","v":""},{"$f":"'用語元'!B293","v":""},{"$f":"'用語元'!C293","v":""}]
[null,"",{"$f":"'用語元'!A294","v":""},{"$f":"'用語元'!B294","v":""},{"$f":"'用語元'!C294","v":""}]
[null,"",{"$f":"'用語元'!A295","v":""},{"$f":"'用語元'!B295","v":""},{"$f":"'用語元'!C295","v":""}]
[null,"",{"$f":"'用語元'!A296","v":""},{"$f":"'用語元'!B296","v":""},{"$f":"'用語元'!C296","v":""}]
[null,"",{"$f":"'用語元'!A297","v":""},{"$f":"'用語元'!B297","v":""},{"$f":"'用語元'!C297","v":""}]
[null,"",{"$f":"'用語元'!A298","v":""},{"$f":"'用語元'!B298","v":""},{"$f":"'用語元'!C298","v":""}]
[null,"",{"$f":"'用語元'!A299","v":""},{"$f":"'用語元'!B299","v":""},{"$f":"'用語元'!C299","v":""}]
[null,"",{"$f":"'用語元'!A300","v":""},{"$f":"'用語元'!B300","v":""},{"$f":"'用語元'!C300","v":""}]
[null,"",{"$f":"'用語元'!A301","v":""},{"$f":"'用語元'!B301","v":""},{"$f":"'用語元'!C301","v":""}]
[null,"",{"$f":"'用語元'!A302","v":""},{"$f":"'用語元'!B302","v":""},{"$f":"'用語元'!C302","v":""}]
[null,"",{"$f":"'用語元'!A303","v":""},{"$f":"'用語元'!B303","v":""},{"$f":"'用語元'!C303","v":""}]
[null,"",{"$f":"'用語元'!A304","v":""},{"$f":"'用語元'!B304","v":""},{"$f":"'用語元'!C304","v":""}]
[null,"",{"$f":"'用語元'!A305","v":""},{"$f":"'用語元'!B305","v":""},{"$f":"'用語元'!C305","v":""}]

{"sheet":"用語元","index":3,"n_rows":160,"n_cols":3,"rows_kept":160,"cut":false,"hidden":false,"merged":[[25,4,25,8],[25,9,25,16]]}
["用語","よみかた","意味・解説"]
["ICT","あいしーてぃー","Information and Communication Technologyの略。\n情報・通信に関連する技術の総称。一般的には「情報通信技術」と訳される。\n学校では、教育活動の目標達成のために情報機器を活用することをいう。学校事務では、情報機器や公務の情報化（ネットワークを有効に活用する技術）を指す。"]
["赤本","あかほん","①教科書の指導書のこと。（赤刷り教科書とも言う）解説等の内容が赤字で載っていることからこのように呼ばれる。\n②群馬県教育関係事務必携のこと。"]
["充て指導主事","あてしどうしゅじ","置籍職員の中で特に、教員としての身分・給与を保ったまま市町村教委・県総合教育センターなどで指導主事の業務を行う職員のこと。"]
["育児短時間勤務","いくじたんじかんきんむ","育児のため、勤務時間を短縮して勤務すること。勤務時間数のパターンに応じて給与の支給割合が決まる。"]
["iDeco","いでこ","個人が自分で掛金の積立て額を決め、自分で運用する私的年金制度。別名、個人型確定拠出年金。公務員は月額12,000円（年間144,000円）が上限。また、掛金は年末調整の際に控除の対象となる。２０２４年１２月から付限度額が実質２万円になる予定。"]
["異動","いどう","勤務学校・所属が変わること。"]
["インクカートリッジ","いんくかーとりっじ","印刷機のインクまたはインクジェットプリンタのインクが入っている容器。"]
["印刷機","いんさつき","書類を大量にコピーしたいときに使用。使用するのにマスター、インクが必要。\n輪転機（りんてんき）と呼ばれる場合もある。"]
["運営委員会（企画委員会）","うんえいいいんかい（きかくいいんかい）","職員会議の前に業務や行事の実行方法や日程などについて審議や承認を行う他、臨時的に重要な問題に対する対処方法を相談する会議。主に主任や管理職といった立場の者が参加する。"]
["A3用紙","えーさんようし","A4用紙の2倍サイズの紙（420mm×297mm）"]
["A4用紙","えーよんようし","学校内で一番使用する紙（297mm×210mm）\n文書を作成する際に最もよく使われる紙のサイズ。"]
["押印","おういん","印を押すこと。"]
["会計年度任用職員","かいけいねんどにんようしょくいん","任用期間が一会計年度（4月1日～翌年3月31日）の職員の名称。職種によって任用期間・勤務時間が異なる。"]
["鑑","かがみ","文書の総括として一番上につける用紙。\n（例：鑑なしでFAXしてください）"]
["学習指導要領","がくしゅうしどうようりょう","文部科学省が定めた学校教育法に基づく教育課程の編成基準。これを基に教員は年間の授業計画を作成する。"]
["学生協","がくせいきょう","群馬県内の学校に勤務する教職員が加入でき、仕事やくらしをサポートする福利厚生事業等を提供する生活協同組合。\n正式名：群馬県学校生活協同組合"]
["拡大教科書","かくだいきょうかしょ","弱視の児童生徒のための文字や図が拡大された教科書。支給には特殊な手続きが必要なので注意。　"]
["確定申告","かくていしんこく","納税義務者が税額を確定するために、その年（1月1日～12月31日）の所得、保険料、医療費などを本人が計算して税務署に申告すること。（申告期間は例年2月16日～3月15日）\n扶養の関係で結果を参照することがある。"]
["学年主任","がくねんしゅにん","各学年で指導的な立場にいる教員。学年を代表して会議に出席したり、外部と交渉したりするほか、学年が３学級以上の場合には教育業務連絡指導手当（いわゆる主任手当）が支給される。\n４月の初めにだれが担当するのか教育委員会に報告し、年度途中に変更があった場合も報告する。"]
["学務","がくむ","児童生徒の学籍や指導、出欠席に関わる事務全般のこと。"]
["学割","がくわり","生徒が全国大会や私的旅行の際に公共交通機関を利用し、利用距離が100㎞を超える場合に、その費用の一部を補助する制度。市町村や教育事務所から学割証をもらい、学校が発行する。"]
["貸付制度","かしつけせいど","物品の購入、住宅の購入など臨時的にお金が必要になった際に申し込むことが出来る制度。（一般貸付、住宅貸付、教育貸付などがある）共済組合と互助会の2種類の貸付がある。"]
["割愛退職（採用）","かつあいたいしょく（さいよう）","公務員としての身分を保ったまま給与支払者が変わって異動すること。\n（例：教員⇒市教委　県費教員⇒市費教員）"]
["学校預かり金","がっこうあずかりきん","学級費、学年費、PTA会費等、学校で預かり、管理運営されているお金。学校徴収金とも言う。"]
["学校日誌","がっこうにっし","校内の行事や教職員の出張、休暇などについて記載する日誌。　"]
["過年度","かねんど","既に経過した会計年度のこと。（給与や旅費でよく使う用語）"]
["カラープリンタ","からーぷりんた","カラーで印刷できる。コストが高いので注意。なお、トナー方式とインク方式の2種類がある。"]
["寒冷地","かんれいち","冬の寒さが厳しい地域のこと。寒冷地に指定された市町村または学校で勤務をする場合は、寒冷地手当が11月～3月の間支給される。"]
["起案","きあん","学校として何かをする（提出する）とき、管理職の承認（決裁）を得るために決定すべき内容や理由などを文書形式でまとめること。　"]
["基点","きてん","旅費の計算をするために各地域に与えられた名称。路程表に記載された基点と基点の間の距離を足し上げ旅費支給額を決めていく。令和5年10月1日で廃止され、現在は出発地→目的地→帰着地の実測距離を計算して旅費を支給している。"]
["期末・勤勉手当","きまつ・きんべんてあて","期末手当と勤勉手当からなる、民間企業における賞与（ボーナス）のこと。6月30日と12月10日の年2回支給される。詳細は期末・勤勉手当支給要領を参照。"]
["義務教育学校","ぎむきょういくがっこう","小学校から中学校までの教育が一貫して行われる学校。小中一貫校と違い、組織的にも統一されている。"]
["休暇","きゅうか","有給のまま職務を休むことができる制度。主に年次有給休暇・病気休暇・特別休暇がある。条例によって取り扱いが定められているので、詳細は事務必携や県教委から出ている「学校職員の休暇等について」等を参照。"]
["休業","きゅうぎょう","無給ではあるものの、職員としての身分を保ったまま業務を休むことができる制度。主に育児休業などがある。休暇同様事務必携などに詳細が記載されている。（育児休業では、育休開始から子が1歳になるまでの期間で育児休業手当金が支給される。）"]
["休職","きゅうしょく","基本的に病休が長期になった場合に、給与の極端な減額を避けるため、ある程度給与を減額しながら休む制度。休職中は最長1年傷病手当金が支給されるが、給与の額によっては減額される。"]
["給与","きゅうよ","支給される全ての給料、手当等の総額。"]
["給与システム","きゅうよしすてむ","給与のデータを入力するためのシステム。旅費システムとは異なり、自分のアカウントでは勤務校のデータのみ閲覧できる。サスティックキーから起動させる。\n正式名：給与データ入出力システム"]
["給与明細","きゅうよめいさい","給料・諸手当支給明細書の略。\n毎月給料日前に給与システムから印刷して職員に配布する。支給日3日前から印刷可。（土日祝日を除く）\n給料日：毎月21日（21日が土日祝日の場合はその前の金曜日）"]
["給料","きゅうりょう","給与のうち基本給にあたる部分のこと。"]
["給料の調整額","きゅうりょうのちょうせいがく","特別支援学校に勤務する教員及び、小中学校の特別支援教育に直接関わる教員（特別支援学級担任や通級指導教室の職員）に対して勤務の特殊性から支給される給与で、給料とは別の枠に表示されるが、給料の一部として扱う。年度当初に該当者を報告し、休業などで該当者に変更があった場合も都度報告する。"]
["給料表","きゅうりょうひょう","各職員の級号給に応じた給料月額が載っている表。詳細は給料表の手引参照。"]
["教育事務所","きょういくじむしょ","各地域の教育に関する業務を取りまとめ、市町村と県をつなぐ機関。事務職員の立場からは給与・旅費・各手当の認定・公務災害・研修等の際に関わる。中部、西部、吾妻、利根、東部の5つがある。"]
["教員免許状","きょういんめんきょじょう","教育職員免許法に基づく免許状のこと。令和5年度から更新制度が廃止となった。ただし臨時免許状は取り扱いが異なり、3年に一度更新が必要。"]
["教科書","きょうかしょ","学校で各教科を教える際に中心的な教材として使われる文部科学大臣の検定に合格した図書。英語や社会など一部の教科では学年・市町村によって類似の図書が使われているが、それらは教科書ではないため、追加で必要になった場合には連絡先に注意する。\n正式名：教科用図書"]
["共済システム","きょうさいしすてむ","共済組合への加入、脱退や各種変更・申請のために教職員の登録を行うシステム。サスティックキーから起動させる。\n正式名：公立学校共済マイナンバー管理システム"]
["共同学校事務室","きょうどうがっこうじむしつ","中学校区を基本として2～7校で構成。事務職員が集まり、手当の認定や事務処理の相互審査、情報交換等を行う。頻度はグループごとに異なり、週2回から月2回程度。"]
["教務主任","きょうむしゅにん","教育事務等に関連する連絡・調整・指導を行う教諭のことを指す。教育業務連絡指導手当（いわゆる主任手当）が支給される。\nそのため、４月の初めにだれが担当するのか教育委員会に報告し、年度途中に変更があった場合も報告する。"]
["GoogleClassroom","ぐーぐるくらするーむ","Googleが学校向けに開発した無料のWebサービスで、課題の作成、配布、採点をペーパーレス化、簡素化することを目的としている。"]
["グリーン購入","ぐりーんこうにゅう","消費者が製品やサービスを購入する際、環境を考慮して、必要性をよく考え、環境への負荷ができるだけ少ないものを選んで購入すること。一部の市町村で購入に関する調査が行われている。"]
["群事研","ぐんじけん","群馬県公立小中学校事務研究会の略。\n県内の公立学校事務職員で構成され、本部役員会、理事会、情報推進部、研究部、研修部、情報技術委員会などの組織がある。"]
["群馬県教育関係事務必携","ぐんまけんきょういくかんけいじむひっけい","規則や条例などが網羅されている赤い本。通称「赤本」と呼ばれることもある。隔年発行で学校・個人どちらも購入可能。"]
["群馬県教育関係職員録","ぐんまけんきょういくかんけいしょくいんろく","県内の教育関係職員がどこに所属しているかが載っている本。毎年4月～5月に各学校で原稿を作成し、7月頃発行される。個人でも購入可能。\n略称：職員録"]
["形式退職（採用）","けいしきたいしょく（さいよう）","給与支払者が同じままで市町村立の義務教育諸学校以外の組織に異動すること。\n（例：教員⇒県教委）"]
["決裁","けっさい","担当者が起案した内容を、権限がある者（管理職等）が決定・許可すること。起案→決裁→執行の流れとなる。"]
["決済用預金口座","けっさいようよきんこうざ","利息の付かない預金口座のこと。預金保険の対象となり、全額が保護されている。給与や就学援助など公的なお金を取り扱う場合はこの口座にするよう指示されることが多い。"]
["検収","けんしゅう","発注した物品などが品質・数量・仕様等の条件を満たして納品されているか確かめた上で、受け取ること。"]
["県総合教育センター","けんそうごうきょういくせんたー","群馬県総合教育センターの略。（センターと縮めて使われる場合もある　例：センター旅費・センター研修）\n教職員の研修を主催している群馬県の機関。旅費を支出する予算やルールが一般（普通旅費）とは違う場合があるので注意。"]
["県費","けんぴ","①県費負担教職員の略。県で任用される臨時的任用職員や会計年度任用職員も含まれる。⇔市町村費\n②県が負担・支出する費用のこと。県の経費。"]
["後期用教科書","こうきようきょうかしょ","小学校で9月1日～9月15日に配布し、9月以降に使用する教科書。"]
["公金","こうきん","国または地方公共団体の予算に計上されているお金のこと。（＝学校配当予算）これに対し、学校預かり金やPTA会費など自治体の管理下にあるわけではないものの、教職員が職務に基づいて管理しているお金のことを準公金と呼称する場合がある。"]
["校内研修","こうないけんしゅう","校内で、学校課題の解決や教員の資質能力の向上を目指して、同僚の教職員とともに行う研修。"]
["公費","こうひ","学校や市町村、県、国などの公共団体の費用。"]
["公務災害","こうむさいがい","職務中や通勤途中にけがをしたり、職務が原因で病気などになった場合に該当する。認定請求を行い、認定された場合は、治療費等さまざまな補償を受けられる。申請する可能性がある場合、病院で組合員証（保険証）を使用してはいけない。また、加害者がいる場合は加害者に賠償してもらうため、基本的に対象外となる。"]
["校務分掌","こうむぶんしょう","学校内の業務分担。学級担任や教科主任、生徒指導主事など。"]
["公立学校共済組合群馬支部","こうりつがっこうきょうさいくみあいぐんましぶ","教職員の健康保険（保険証）や年金関係の手続きなどの福利厚生事業を担う機関。県教育委員会福利課が業務を担当している。詳細は以下のホームページを参照。\nhttps://www.kouritu.go.jp/gunma/"]
["互助会","ごじょかい","会員の相互救済のため、各種給付・貸付・助成等を行っている組織。加入は任意で、毎月掛金が給与から引かれる。"]
["個人調査票","こじんちょうさひょう","①人事異動について教職員が自身の状況や希望を申し出る調査書。\n②児童生徒の家庭状況・連絡先等の情報を保護者が記入し、学校に提出する用紙。家庭調査票などとも呼ばれる。"]
["コピー機（複合機）","こぴーき（ふくごうき）","文書をコピーするために使用する機械で、スキャナ機能やプリンタ機能を持つ複合機の場合もある。使用料は、インクを購入するパターンと、契約で印刷単価に使用枚数をかけて決めるパターンがある。契約単価が学校によって違うので、枚数によっては印刷機で刷る方が安価な場合がある。"]
["コミュニティ・スクール","こみゅにてぃ・すくーる","保護者や地域のニーズを反映させるために、地域住民が学校運営に参画できるようにする仕組みや考え方を有する形態の学校のこと。"]
["在学証明書","ざいがくしょうめいしょ","証明をした日付まで児童生徒が在学していたことを証明する書類。転校などの際に相手校に送付する。"]
["財形貯蓄","ざいけいちょちく","財形とも呼ばれる。給与から直接天引きされる貯蓄で、一般財形・財形年金・財形住宅の3種類がある。新規・変更の一部は年1回、9月のみ申込可能。"]
["債権者","さいけんしゃ","市町村と契約している業者。公費で支払いを行う場合、債権者登録された業者でないと支払いができない市町村もある。"]
["在職証明書","ざいしょくしょうめいしょ","特定の期間に勤務していたことを証明する書類。臨時的任用職員の給与格付や正規職員の期末・勤勉手当支給割合の決定に使われる。"]
["裁断機","さいだんき","紙を裁断するときに使用。学校によっては電動のものもある。"]
["再任用","さいにんよう","定年から年金支給開始年齢まで働くことができる任用形態。正規職員と同じ時間で働くフルタイムと短時間勤務の2種類がある。定年の延長により令和5年度より名称が「暫定再任用」となった。また、併せて60歳を超えてから定年前に一度退職し短時間勤務を行う「定年前再任用短時間勤務職員」という任用形態もできた。"]
["財務会計システム","ざいむかいけいしすてむ","業者へ支払う際の伺い・命令の作成や予算執行状況の確認等に使用する。また、市町村によっては備品の管理にも使用する。"]
["サスティックキー","さすてぃっくきー","給与システム、旅費システム、共済システム、人事管理システムを起動するために必要な専用のUSBメモリ型認証キー。"]
["C4th","しーふぉーす","校務支援システムの名称。県内の多くの市町村で導入されている。文書受付や市町村内の学校・教育委員会内の連絡、学校日誌等に使用。"]
["私印","しいん","本人の丸印。自印（じいん）・認印（みとめいん）とも言う。"]
["市教委","しきょうい","市教育委員会の略。町の場合は町教委、村の場合は村教委と言う。\n市町村内の学校に関わる文書や業務を取りまとめている機関。"]
["自己申告書","じこしんこくしょ","年度始めに学校経営方針などを参考に自身で目標を設定し、年度の後半に自己評価を行い、管理職に申告する書類。それを基に管理職との面談が行われ、自己申告書や普段の業績などを参考に人事評価が行われる。"]
["支出負担行為兼支出命令書（兼命令）","ししゅつふたんこういけんししゅつめいれいしょ（けんめいれい）","支出負担行為書と支出命令書の役割を兼ねた書類。市町村によってはほとんどの財務処理をこの書類で行っている。"]
["支出負担行為書","ししゅつふたんこういしょ","発注の是非を伺うための書類。財務会計システムで作成する。"]
["支出命令書","ししゅつめいれいしょ","支出負担に基づき購入した物品の支払いを行う際に作成する書類。財務会計システムで作成する。"]
["児童手当","じどうてあて","家庭等における生活の安定と、児童の健やかな健康を目的として、中学校修了前の児童を養育している者に対して支給される手当。毎年6，10，2月に前月までの4か月分が支給される。詳細は児童手当・特例給付支給事務処理要領を参照。"]
["市費","しひ","①市費職員の略。町の場合は町費職員、村の場合は村費職員と言う。\n　市町村によってさまざまな職種がある。\n（例：図書館業務従事臨時職員、個別支援推進補助員、学校支援員、スクールアシスタント、用務技士（本務・嘱託・臨時）、市費の地公臨、ODS　など）\n②市が負担・支出する費用のこと。市の経費。"]
["私費","しひ","保護者などから集金している会計の費用。"]
["就学援助","しゅうがくえんじょ","経済的な理由で児童生徒に義務教育を受けさせることが困難な保護者に、学校生活で必要な費用の一部を市町村が援助する制度。市町村が世帯の所得等を考慮して認定する。\n正式名：就学援助制度"]
["就学奨励費（特支奨励費）","しゅうがくしょうれいひ（とくししょうれいひ）","障害のある児童生徒が、各学校で学ぶ際に保護者が負担する教育関係経費について、家庭の経済状況等に応じ、国及び地方公共団体が補助する制度。\n正式名：特別支援教育就学奨励費"]
["収入","しゅうにゅう","給与から税金や社会保険料等を引く前の金額。"]
["出勤簿","しゅっきんぼ","教職員の出勤状況を押印により記録しておく帳簿。"]
["昇給","しょうきゅう","給料の号給が上がること。通常4月1日に行われ、前年度の1月末に次年度の昇給について記載した書類を作成する。"]
["消耗品","しょうもうひん","比較的短期間で使い切るものや安価なもの。市町村によっては備品でないものの総称。消耗品の中でも、ものによっては予算上の取り扱いが異なる場合があるので注意が必要。"]
["職印","しょくいん","主に校長などがその役職として押印するための印。重要な書類に押印することが多い。"]
["職員番号","しょくいんばんごう","教職員に付けられた番号。県費の正規・臨時的任用職員の場合は6桁の番号が与えられ、末尾に1桁追加されたものが組合員番号（保険証の番号）となる。臨時的任用職員は29から、再任用職員は6から始まる番号になっている。"]
["職免","しょくめん","職務専念義務免除の略。\n勤務時間内に所属長の許可を得て、一時的に職務を離れること。\n（例：運転免許更新、管理職試験、人間ドック、市町村が行う健康診断（校外で行われるもの））"]
["所得","しょとく","収入から社会保険料などの必要経費を差し引いた金額。所得を基に住民税や所得税が計算される。"]
["初任研","しょにんけん","初任者研修の略。\n一般には、県総合教育センター主催の研修講座を指すことが多いが、教育事務所や市町村教委等が主催する研修もある。"]
["辞令","じれい","任用・免職・休職等に際して、その旨を記載して本人に渡す文書。"]
["辞令交付式","じれいこうふしき","採用や異動時に辞令を交付する式典のこと。新規採用者については、県と配属される市町村がそれぞれ指定する場所で行われる。"]
["人事管理システム","じんじかんりしすてむ","人事記録の閲覧や印刷、修正を行うシステム。サスティックキーから起動させる。"]
["人事記録","じんじきろく","教職員の基本的な情報（採用年月日や住所・学歴など）や所有免許状、職歴などが記録されている。記載事項に変更があったときには、システムへの入力と「人事記録事項異動届」を提出する。また、臨時的任用職員はシステムに登録されないため、所属で個別に作成する。"]
["スキャナー","すきゃなー","紙ベースのものを読み取り、PDF形式などで保存する機械。\nコピー機（複合機）の機能として搭載されている場合もある。"]
["専科","せんか","小学校で特定の教科を主として教える教員。"]
["前期用教科書","ぜんきようきょうかしょ","4月1日～4月15日に配布し、学年当初から使用する教科書。"]
["全事研","ぜんじけん","全国公立小中学校事務職員研究会の略。\n全事研の会員になるには年度ごとに会費を支払う。市町村によって会費の取り扱いが異なるので注意。"]
["選択型厚生事業","せんたくがたこうせいじぎょう","互助会加入者に対して年に一度助成券が配布され、健康増進・元気回復につながる事業へ参加した場合にその費用の一部を支給する制度。"]
["総額裁量制","そうがくさいりょうせい","教育委員会が示した金額の中で学校が自由に予算を組むことができる制度。"]
["卒業証明書","そつぎょうしょうめいしょ","卒業生がその学校を卒業したことを証明する書類。"]
["地公臨","ちこうりん","地方公務員法に基づく臨時的任用職員の略。\n通常4月1日～9月30日まで任用された後、任用期間が更新され、10月1日～3月31日まで勤務する臨時的任用職員。ただし、休職者の代わりに任用される地公臨もおり、その場合は休職期間に合わせて任用される。"]
["置籍","ちせき","学校に籍を置いたまま、市町村教委・県総合教育センターの指導主事（＝充て指導主事）、内地留学者等となっている状態。"]
["中等教育学校","ちゅうとうきょういくがっこう","中学校から高等学校までの教育が一貫して行われる学校。"]
["丁合機","ちょうあいき","丁合（製本の際にページ順に揃え1冊にまとめる作業）を自動で行う機械。"]
["長研","ちょうけん","県総合教育センターの主催する「長期研修」の略。\n基本的には、毎日県総合教育センターまたは市町村の指定する場所での勤務になる。\nなお、一部市町村では独自に長期研修を行っている。"]
["追給","ついきゅう","支払いが済んだ支出に対して、本来支払うべき金額のうち不足している分を追加で支出すること。\n（例：管理職手当の区分が間違っていたため、過去の分について追給する）"]
["手当","てあて","給与の中で給料以外に職務や本人の生活状況に応じて支給されるものの総称。通勤・住居・扶養手当などがある。詳細は給与実務の手引や各種手当の手引等を参照。"]
["訂正印","ていせいいん","文書の一部を訂正するときに押す印のこと。通常、訂正部分に二重線を引き、線の上に押す。"]
["転学用教科書","てんがくようきょうかしょ","転入した児童生徒がその学校で使用している教科書を持っていない場合に給与する教科書。前期・後期に分けられ、前期は4月1日～8月31日、後期は9月1日～2月末日に転入してきた者に給与する。3月以降の転入者には教科書給与はないので注意。"]
["転出","てんしゅつ","教職員が他の所属へ異動すること。\n児童生徒が他の学校へ転校すること。"]
["転入","てんにゅう","教職員が他の所属から異動してくること。\n児童生徒が他の学校から転校してくること。"]
["転任","てんにん","教職員が別の市町村の学校へ異動すること。"]
["転補","てんぽ","教職員が同じ市町村内の学校へ異動すること。"]
["特研","とっけん","県総合教育センターの主催する「特別研修」の略。\n週に1回程度県総合教育センターまたは市町村の指定する場所で研修を受ける。\nなお、一部市町村では独自に特別研修を行っている。"]
["トナー","となー","レーザープリンタの印刷に必要なものであり、インクジェットプリンタのインクと同様のもの。通常カートリッジに入っているので、なくなった場合はカートリッジごと交換する。"]
["内地留学","ないちりゅうがく","専修免許状を取得するため、給与を支給されながら大学院に入学すること。1年目は通常の通学で、2年目は学校に勤務しながら通う。"]
["任期付育休代替学校職員","にんきつきいくきゅうだいたいがっこうしょくいん","1年を超える育児休業を取得している教職員の代替で務める臨時的任用職員のこと。育休補助任用とは異なり、同一人物の育休に対して2年連続で代替することが可能。"]
["任命権者","にんめいけんじゃ","公務員の任用・免職・休職・懲戒等について権限を有する者。県費教職員の場合は群馬県教育委員会教育長。"]
["年間行事予定表","ねんかんぎょうじよていひょう","学校でその年度内に行われる予定を一覧にまとめたもの。前年度末から年度始めに配布される。"]
["年度","ねんど","通常の1月～12月までの1年とは異なる区切りで切り取られた1年間のこと。基本的に4月～翌年3月まで。"]
["年末調整","ねんまつちょうせい","毎年年末に所得税について納税額の過不足を精算する処理。学校では、11月～1月初旬にかけて事務処理を行う。"]
["廃インク（トナー）ボックス","はいいんく（となー）ぼっくす","プリンタが印刷する際に余ったインク（トナー）が自動で入るボックス。満タンになると交換する必要がある。"]
["配送（使送）","はいそう（しそう）","学校が教育委員会等の公的機関と書類のやりとりをする手段。市町村によって決められた人員が書類の配布や回収を行う。呼び名や頻度は市町村によって異なる。"]
["B5用紙","びーごようし","B4用紙の1/2サイズの紙（182mm×257mm）　\n文書よりもおたよりや宿題など教育にかかわる部分で使われることが多い。"]
["B4用紙","びーよんようし","B5用紙の2倍サイズの紙（257mm×364mm）　\n文書よりもおたよりや宿題など教育にかかわる部分で使われることが多い。"]
["備品","びひん","長期に渡り使用する物品で比較的高額なもの。市町村によっては番号を振って帳簿で管理したり、金額によって備品になるかどうか決めたりする。"]
["封筒（角0）","ふうとう（かくぜろ）","書類を送る際に使う封筒の中でも最大級のもの（287mm×382mm）\nB4用紙が折らずに入り、角2封筒を入れるために使われることもある。"]
["封筒（角2）","ふうとう（かくに）","書類を送る際に使う封筒の中でも大きめのもの（240mm×332mm）\nA4用紙が折らずに入る。"]
["封筒（長形30）","ふうとう（なががたさんじゅう）","書類を送る際に使う封筒の中でもかなり細長いもの（92mm×235mm）\nA4用紙の4つ折りが入る。"]
["封筒（長3）","ふうとう（ながさん）","書類を送る際に使う封筒の中でやや細長いもの（120mm×235mm）\nA4用紙3つ折りが入る他、郵便用としてもよく使われる。"]
["服務","ふくむ","公務員が職務に従事する際に服すべきさまざまな義務や規律のこと。"]
["復命","ふくめい","命令に従って行った事の経過・結果を命令者に報告すること。出張や研修の後に行われることが多い。"]
["赴任旅費","ふにんりょひ","赴任に伴い支給される旅費。新規採用者・異動者で住居を移転する場合は添付書類として住民票などが必要になる。"]
["扶養","ふよう","主に近親者を養っている状態のこと。手当の支給や保険証の発行、税制上の優遇などのメリットがあるが、制度によって認定の基準が異なる他、定期的に基準を満たしているか確認をする必要がある。"]
["フラットファイル","ふらっとふぁいる","書類を綴っておくためのファイル。A4の紙製が多いが、A5やB4などさまざまなサイズ、プラスチック製、背表紙が伸び広がり綴じられる枚数が多いタイプなどがあり、用途に応じて使い分けることができる。"]
["へき地","へきち","山間や離島など生活に不便とされる地域。へき地に指定された地域の学校に勤務する教職員はへき地手当等が支給される。なお、手当は出ないが、誓約の対象となる人事上のへき地もある。"]
["別途支給","べっとしきゅう","部活動の大会役員や出張の際に関係機関から交通費などが支給されること。旅費システムでは「他費」にチェックを入れないと二重に支給することになるため、注意が必要。"]
["マスター","ますたー","印刷機で、印刷の基として作る版に使われる用紙。一般的にロールに巻かれている。"]
["四つ切り・八つ切り","よつぎり・やつぎり","サイズの規格。1枚を4つまたは8つに分けた大きさ。学校では主に画用紙のサイズとして使うことが多い。"]
["ラミネーター","らみねーたー","熱によりフィルム同士を貼り付けて用紙をフィルムで保護（ラミネート）された状態にする機械。用紙サイズに応じたフィルムが必要。"]
["リース","りーす","料金を支払い、決められた期間で物品を業者から借りること。"]
["理振法","りしんほう","理科教育振興法の略。\n理科・算数（数学）の授業で使われる特定の物品・備品に対して、購入する前に申請することで国から補助金が支給される制度。教育委員会が取りまとめていたり、購入・廃棄を台帳管理する必要があったりするので、注意が必要。"]
["リフレッシュ休暇","りふれっしゅきゅうか","決められた勤続条件・年齢条件を満たした場合に正規職員が取得できる休暇。30歳、40歳、50歳の3区分があり、40歳以降は特別休暇を取得できる。また、互助会の会員である場合は図書券または旅行券が配布される。"]
["流用","りゅうよう","ある支出科目の予算を減らして、別の支出科目へ充てること。\n（例：燃料費が不足したため消耗品費から流用する）"]
["旅行雑費","りょこうざっぴ","旅費の項目であり、県外旅行において1日単位で定額が支給される。なお実費が定額を超える場合はその分も支給される。（1日の上限あり）私有車を利用した場合は基本的に支給されない。"]
["旅費","りょひ","出張に行った際に掛かった費用を支給するもの。交通手段・金額によって添付書類が必要となったり、事前の申請が必要であったりするので注意。支給は旅費システムに入力して各個人の口座へ振り込まれる。"]
["旅費システム","りょひしすてむ","旅費のデータを入力するためのシステム。給与システムとは異なり、自分のアカウントで共同学校事務室内の学校のデータが閲覧できる。サスティックキーから起動させる。\n正式名：旅費計算システム"]
["臨時的任用職員","りんじてきにんようしょくいん","地公臨や各種補助職員のことを言う。県費がほとんどだが、市町村で任用されている者もいるため、市町村により職名・業務が異なる場合がある。"]
["例月","れいげつ","業務が毎月行われることを意味しており、主に給与の事務処理の単位として使われる。\n（例：5月例月⇒5月の　と読みかえられる）"]
["戻入","れいにゅう","支払いが済んだ支出に対して、過払いした金額を返還すること。\n（例：誤って支給された給与を戻入処理する）"]